Workbook

Sheet Language

Sheet Exh 1-2
E1: Exhibit 1. Doniphon. P&L and Forecast
A2: Profit and Loss Statement | D2: Past P&L | I2: Forecast
A3: (Thousands of euros) | B3: 2018 | C3: 2019 | D3: =C3+1 -> 2020 | E3: =D3+1 -> 2021 | F3: =E3+1 -> 2022 | I3: =F3+1 -> 2023 | J3: =I3+1 -> 2024
A4: Sales | B4: 32850 | C4: =B4*(1+C97) -> 39748.5 | D4: =C4*(1+D97) -> 39351.015 | E4: =D4*(1+E97) -> 45253.66725 | F4: =E4*(1+F97) -> 49779.03398 | I4: =F4*(1+I20) -> 49779.03398 | J4: =I4*(1+J20) -> 49779.03398
A5: Cost of components | B5: =B4*B98 -> 17804.7 | C5: =C4*C98 -> 21066.705 | D5: =D4*D98 -> 23728.66204 | E5: =E4*E98 -> 27785.75169 | F5: =F4*F98 -> 29867.42039 | I5: ------- | J5: -------
A6: Labor | B6: =B4*B99 -> 5715.9 | C6: =C4*C99 -> 6359.76 | D6: =D4*D99 -> 8421.11721 | E6: =E4*E99 -> 9729.538459 | F6: =F4*F99 -> 10602.93424 | I6: ------- | J6: -------
A7: Total COGS | B7: =B5+B6 -> 23520.6 | C7: =C5+C6 -> 27426.465 | D7: =D5+D6 -> 32149.77925 | E7: =E5+E6 -> 37515.29015 | F7: =F5+F6 -> 40470.35462 | I7: ------- | J7: -------
A8: Gross Margin | B8: =B4-B7 -> 9329.4 | C8: =C4-C7 -> 12322.035 | D8: =D4-D7 -> 7201.235745 | E8: =E4-E7 -> 7738.3771 | F8: =F4-F7 -> 9308.679353 | I8: =I4*I21 -> 9955.806795 | J8: =J4*J21 -> 10453.59713
A9: Operating Expenses (Opex ) | B9: 3660 | C9: 4020 | D9: 4230 | E9: 3960 | F9: 4050 | I9: =F9*(1+I23) -> 4252.5 | J9: =I9*(1+J23) -> 4465.125
A10: EBITDA | B10: =B8-B9 -> 5669.4 | C10: =C8-C9 -> 8302.035 | D10: =D8-D9 -> 2971.235745 | E10: =E8-E9 -> 3778.3771 | F10: =F8-F9 -> 5258.679353 | I10: =I8-I9 -> 5703.306795 | J10: 5988.472135
A11: Depreciation | B11: 1591.2 | C11: 1591.2 | D11: 1694.16 | E11: 1719.12 | F11: 1560 | I11: 1500 | J11: 1500
A12: EBIT | B12: =B10-B11 -> 4078.2 | C12: =C10-C11 -> 6710.835 | D12: =D10-D11 -> 1277.075745 | E12: =E10-E11 -> 2059.2571 | F12: =F10-F11 -> 3698.679353 | I12: =I10-I11 -> 4203.306795 | J12: 4488.472135
A13: Extraordinary Results | B13: 0 | C13: 0 | D13: 0 | E13: 1100 | F13: 0 | I13: 0 | J13: 0
A14: Financial Expenses | B14: =B103*(B48+B46) -> 321.6311197 | C14: =C103*(C48+C46) -> 267.8992552 | D14: =D103*(D48+D46) -> 555.8449114 | E14: =E103*(E48+E46) -> 1060.517105 | F14: =F103*(F48+F46) -> 1191.990086 | I14: =I28*F64 -> 1069.734693 | J14: =J28*I64 -> 517.1474276
A15: EBT | B15: =B12+B13-B14 -> 3756.56888 | C15: =C12+C13-C14 -> 6442.935745 | D15: =D12+D13-D14 -> 721.2308336 | E15: =E12+E13-E14 -> 2098.739995 | F15: =F12+F13-F14 -> 2506.689267 | I15: =I12+I13-I14 -> 3133.572102 | J15: =J12+J13-J14 -> 3971.324707
A16: Taxes (25%) | B16: =B15*B106 -> 939.1422201 | C16: =C15*C106 -> 1610.733936 | D16: =D15*D106 -> 180.3077084 | E16: =E15*E106 -> 524.6849987 | F16: =F15*F106 -> 626.6723168 | I16: =0.25*I15 -> 783.3930256 | J16: =0.25*J15 -> 992.8311768
A17: Net Income | B17: =B15-B16 -> 2817.42666 | C17: =C15-C16 -> 4832.201809 | D17: =D15-D16 -> 540.9231252 | E17: =E15-E16 -> 1574.054996 | F17: =F15-F16 -> 1880.01695 | I17: =I15-I16 -> 2350.179077 | J17: =J15-J16 -> 2978.49353
A19: P&L Ratios (Profitability Ratios) | I19: P&L Assumptions
A20: Growth of Sales | B20: 0.41 | C20: =C97 -> 0.21 | D20: =D4/C4-1 -> -0.01 | E20: =E4/D4-1 -> 0.15 | F20: 0.1 | I20: 0 | J20: 0
A21: Gross Margin / Sales | B21: =B8/B4 -> 0.284 | C21: =C8/C4 -> 0.31 | D21: =D8/D4 -> 0.183 | E21: =E8/E4 -> 0.171 | F21: =F8/F4 -> 0.187 | I21: 0.2 | J21: 0.21
A22: Opex / Sales | B22: =B9/B4 -> 0.1114155251 | C22: =C9/C4 -> 0.1011358919 | D22: =D9/D4 -> 0.1074940507 | E22: =E9/E4 -> 0.08750672024 | F22: =F9/F4 -> 0.08135955394 | I22: =I9/I4 -> 0.08542753164 | J22: 0.08969890822
A23: Increase in Opex | B23: na | C23: =C9/B9-1 -> 0.09836065574 | D23: =D9/C9-1 -> 0.05223880597 | E23: =E9/D9-1 -> -0.06382978723 | F23: =F9/E9-1 -> 0.02272727273 | I23: 0.05 | J23: 0.05
A24: EBITDA / Sales | B24: =B10/B4 -> 0.1725844749 | C24: =C10/C4 -> 0.2088641081 | D24: =D10/D4 -> 0.07550594934 | E24: =E10/E4 -> 0.08349327976 | F24: =F10/F4 -> 0.1056404461 | I24: =I10/I4 -> 0.1145724684 | J24: =J10/J4 -> 0.1203010918
A25: ROS, Net Income / Sales | B25: =B17/B4 -> 0.08576641279 | C25: =C17/C4 -> 0.1215694129 | D25: =D17/D4 -> 0.0137461035 | E25: =E17/E4 -> 0.03478292681 | F25: =F17/F4 -> 0.03776724457 | I25: =I17/I4 -> 0.0472122275 | J25: =J17/J4 -> 0.05983429755
A26: ROE, Net Income / Equity | B26: =B17/B49 -> 0.1784924414 | C26: =C17/C49 -> 0.2776808635 | D26: =D17/D49 -> 0.02432842791 | E26: =E17/E49 -> 0.06911290912 | F26: =F17/F49 -> 0.07721069525 | I26: =I17/F65 -> 0.08960164789 | J26: =J17/I65 -> 0.104218292
A27: RONA, EBIT / Net Assets | B27: =B12/B62 -> 0.1645283883 | C27: =C12/C62 -> 0.2441446562 | D27: =D12/D62 -> 0.04041627327 | E27: =E12/E62 -> 0.05323761657 | F27: =F12/F62 -> 0.08910093113 | I27: =I12/I62 -> 0.1168650177 | J27: =J12/J62 -> 0.1283461549
A28: Cost of Debt | B28: =B103 -> 0.052 | C28: =C103 -> 0.051 | D28: =D103 -> 0.063 | E28: =E103 -> 0.074 | F28: =F103 -> 0.078 | I28: 0.07 | J28: 0.07
A29: EBIT / Fin expenses | B29: =B12/B14 -> 12.67974319 | C29: =C12/C14 -> 25.04984568 | D29: =D12/D14 -> 2.297539689 | E29: =E12/E14 -> 1.941748124 | F29: =F12/F14 -> 3.102944728 | I29: =I12/I14 -> 3.92929838 | J29: =J12/J14 -> 8.6792893
E31: Exhibit 2. Doniphon. Balance sheet and Forecast
A33: Assets | H33: Differences
A34: (Thousands of euros) | B34: =B3 -> 2018 | C34: =C3 -> 2019 | D34: =D3 -> 2020 | E34: =E3 -> 2021 | F34: =F3 -> 2022 | H34: 2019-22
A35: Cash | B35: 690 | C35: 630 | D35: 360 | E35: 180 | F35: 120 | H35: =F35-C35 -> -510
A36: Receivables | B36: =B4/365*B110 -> 8640 | C36: 10756.63111 | D36: 12047.42684 | E36: 18594.25222 | F36: 20786.25756 | H36: =F36-C36 -> 10029.62645
A37: Inventory | B37: 7350 | C37: 8946.135 | D37: 10726.65544 | E37: 13321.93574 | F37: 13256.22494 | H37: =F37-C37 -> 4310.089938
A38: Current Assets, CA | B38: =SUM(B35:B37) -> 16680 | C38: =SUM(C35:C37) -> 20332.76611 | D38: =SUM(D35:D37) -> 23134.08229 | E38: =SUM(E35:E37) -> 32096.18796 | F38: =SUM(F35:F37) -> 34162.4825
A39: Fixed Assets net, FA | B39: 15300 | C39: 16290 | D39: 16530 | E39: 15570 | F39: 15060 | H39: =F39-C39 -> -1230
A40: Total Assets | B40: =B38+B39 -> 31980 | C40: =C38+C39 -> 36622.76611 | D40: =D38+D39 -> 39664.08229 | E40: =E38+E39 -> 47666.18796 | F40: =F38+F39 -> 49222.4825
A42: Liabilities + Equity
A43: Payables | B43: =B54/365*B113 -> 3810 | C43: =C54/365*C113 -> 4421.117417 | D43: =D54/365*D113 -> 4942.326782 | E43: =E54/365*E113 -> 6840.329723 | F43: =F54/365*F113 -> 5837.935931 | H43: =F43-C43 -> 1416.818514
A44: Advances from customers | B44: 2370 | C44: 3199.5 | D44: 2143.665 | E44: 1436.25555 | F44: 962.2912185 | H44: -2237.208781
A45: Taxes and other payables | B45: 1012.788241 | C45: 1515.022394 | D45: 980.0325537 | E45: 709.1126118 | F45: 911.1363741 | H45: -603.8860197
A46: Bank Credit | B46: =IF(B71<0,(-B71+B35),0) -> 4235.21384 | C46: =IF(C71<0,(-C71+C35),0) -> 3452.926573 | D46: =IF(D71<0,(-D71+D35),0) -> 7172.935101 | E46: =IF(E71<0,(-E71+E35),0) -> 12831.31223 | F46: =IF(F71<0,(-F71+F35),0) -> 13931.92418 | H46: 10478.99761
A47: Current Liabilities | B47: =B43+B44+B45+B46 -> 11428.00208 | C47: =C43+C44+C45+C46 -> 12588.56638 | D47: =D43+D44+D45+D46 -> 15238.95944 | E47: =E43+E44+E45+E46 -> 21817.01012 | F47: =F43+F44+F45+F46 -> 21643.2877
A48: Loan (Long-term Debt) | B48: 1950 | C48: =B48+C116 -> 1800 | D48: =C48+D116 -> 1650 | E48: =D48+E116 -> 1500 | F48: =E48+F116 -> 1350 | H48: -450
A49: Capital & reserves | B49: 15784.57126 | C49: =B49+B50-C118 -> 17401.99792 | D49: =C49+C50 -> 22234.19973 | E49: =D49+D50 -> 22775.12285 | F49: =E49+E50 -> 24349.17785
A50: Net income for the year | B50: =B17 -> 2817.42666 | C50: =C17 -> 4832.201809 | D50: =D17 -> 540.9231252 | E50: =E17 -> 1574.054996 | F50: =F17 -> 1880.01695
A51: Equity | B51: =B49+B50 -> 18601.99792 | C51: =C49+C50 -> 22234.19973 | D51: =D49+D50 -> 22775.12285 | E51: =E49+E50 -> 24349.17785 | F51: =F49+F50 -> 26229.1948 | H51: =F51-C51 -> 3994.995072
A52: Liabilities + Equity | B52: =B47+B48+B51 -> 31980 | C52: =C47+C48+C51 -> 36622.76611 | D52: =D47+D48+D51 -> 39664.08229 | E52: =E47+E48+E51 -> 47666.18796 | F52: =F47+F48+F51 -> 49222.4825
A54: Purchases | B54: 20110 | C54: =C5+(C37-B37) -> 22662.84 | D54: =D5+(D37-C37) -> 25509.18249 | E54: =E5+(E37-D37) -> 30381.03199 | F54: =F5+(F37-E37) -> 29801.70958
A55: Dividends paid | C55: =B49+B50-C49 -> 1200 | D55: =C49+C50-D49 -> 0 | E55: =D49+D50-E49 -> 0 | F55: =E49+E50-F49 -> 0
A56: Capex | D56: =D39-C39+D11 -> 1934.16 | E56: =E39-D39+E11 -> 759.12 | F56: =F39-E39+F11 -> 1050
H57: =H33 -> Differences | I57: Forecast
A58: Short Balance Sheet | B58: =B3 -> 2018 | C58: =C3 -> 2019 | D58: =D3 -> 2020 | E58: =E3 -> 2021 | F58: =F3 -> 2022 | H58: =H34 -> 2019-22 | I58: =F58+1 -> 2023 | J58: =I58+1 -> 2024
A59: Cash surplus | B59: =B35-B109 -> 690 | C59: =C35-C109 -> 630 | D59: =D35-D109 -> 360 | E59: =E35-E109 -> 180 | F59: =F35-F109 -> 120 | H59: =F59-C59 -> -510 | I59: 0 | J59: 0
A60: NFO or Current Assets, Net | B60: =B109+B36+B37-B43-B44-B45 -> 8797.211759 | C60: =C109+C36+C37-C43-C44-C45 -> 10567.1263 | D60: =D109+D36+D37-D43-D44-D45 -> 14708.05795 | E60: =E109+E36+E37-E43-E44-E45 -> 22930.49008 | F60: =F109+F36+F37-F43-F44-F45 -> 26331.11898 | H60: =F60-C60 -> 15763.99268 | I60: =I4*I78 -> 20907.19427 | J60: =J4*J78 -> 19911.61359
A61: FA or Fixed Assets, Net | B61: =B39 -> 15300 | C61: =C39 -> 16290 | D61: =D39 -> 16530 | E61: =E39 -> 15570 | F61: =F39 -> 15060 | H61: =F61-C61 -> -1230 | I61: =F61 -> 15060 | J61: =I61 -> 15060
A62: NA, Net Assets | B62: =B59+B60+B61 -> 24787.21176 | C62: =C59+C60+C61 -> 27487.1263 | D62: =D59+D60+D61 -> 31598.05795 | E62: =E59+E60+E61 -> 38680.49008 | F62: =F59+F60+F61 -> 41511.11898 | I62: =I59+I60+I61 -> 35967.19427 | J62: 34971.61359
A64: D, Debt | B64: =B46+B48 -> 6185.21384 | C64: =C46+C48 -> 5252.926573 | D64: =D46+D48 -> 8822.935101 | E64: =E46+E48 -> 14331.31223 | F64: =F46+F48 -> 15281.92418 | H64: =F64-C64 -> 10028.99761 | I64: =I62-I65 -> 7387.820394 | J64: =J62-J65 -> 3413.746184
A65: E, Equity | B65: =B51 -> 18601.99792 | C65: =C51 -> 22234.19973 | D65: =D51 -> 22775.12285 | E65: =E51 -> 24349.17785 | F65: =F51 -> 26229.1948 | H65: =F65-C65 -> 3994.995072 | I65: =F65+I17 -> 28579.37388 | J65: =I65+J17 -> 31557.86741
A66: Debt + Equity | B66: =B64+B65 -> 24787.21176 | C66: =C64+C65 -> 27487.1263 | D66: =D64+D65 -> 31598.05795 | E66: =E64+E65 -> 38680.49008 | F66: =F64+F65 -> 41511.11898 | I66: =I64+I65 -> 35967.19427 | J66: =J64+J65 -> 34971.61359
A68: Shortest Balance Sheet: NFO vs WC
A69: NFO | B69: =B60 -> 8797.211759 | C69: =C60 -> 10567.1263 | D69: =D60 -> 14708.05795 | E69: =E60 -> 22930.49008 | F69: =F60 -> 26331.11898 | H69: =F69-C69 -> 15763.99268
A70: WC | B70: =B48+B51-B39 -> 5251.997919 | C70: =C48+C51-C39 -> 7744.199727 | D70: =D48+D51-D39 -> 7895.122853 | E70: =E48+E51-E39 -> 10279.17785 | F70: =F48+F51-F39 -> 12519.1948 | H70: =F70-C70 -> 4774.995072
A71: Credit Needed (-) or | B71: =B70-B69 -> -3545.21384 | C71: =C70-C69 -> -2822.926573 | D71: =D70-D69 -> -6812.935101 | E71: =E70-E69 -> -12651.31223 | F71: =F70-F69 -> -13811.92418 | H71: =F71-C71 -> -10988.99761
A72: Cash Surplus (+)
A74: Balance Sheet Ratios | H74: En% Sales | I74: Balance Assumptions
A75: Receivables in Days | B75: =B36/B4*365 -> 96 | C75: 98.77530864 | D75: 111.7458037 | E75: 149.9746313 | F75: 152.4132432 | H75: =F36/F4 -> 0.4175705293 | I75: ----- | J75: ----- | L75: 120 | M75: =L75/365 -> 0.3287671233
A76: Inventory in Days | B76: 150.6765068 | C76: 155 | D76: 165 | E76: 175 | F76: 162 | H76: =F37/F4 -> 0.2663013699 | I76: ----- | J76: -----
A77: Payables in Days | B77: =B43/B54*365 -> 69.1521631 | C77: =C43/C54*365 -> 71.20501478 | D77: =D43/D54*365 -> 70.71764358 | E77: =E43/E54*365 -> 82.18023501 | F77: =F43/F54*365 -> 71.50081806 | H77: =(F43+F44+F45)/F4 -> 0.1549118757 | I77: ----- | J77: -----
A78: NFO / Sales in % | B78: =B69/B4 -> 0.2677994447 | C78: =C69/C4 -> 0.2658496874 | D78: =D69/D4 -> 0.3737656565 | E78: =E69/E4 -> 0.5067100961 | F78: =F69/F4 -> 0.5289600235 | H78: =H75+H76-H77 -> 0.5289600235 | I78: 0.42 | J78: 0.4
A79: Debt / EBITDA | B79: =B64/B10 -> 1.090982086 | C79: =C64/C10 -> 0.632727587 | D79: =D64/D10 -> 2.969449703 | E79: =E64/E10 -> 3.792980916 | F79: =F64/F10 -> 2.906038409
A80: Debt / Net Income | B80: =B64/B17 -> 2.19534156 | C80: =C64/C17 -> 1.087066886 | D80: =D64/D17 -> 16.31088539 | E80: =E64/E17 -> 9.10470871 | F80: =F64/F17 -> 8.128609786
J81: © E.M. Abascal 2023
A84: Clientes / Ventas | B84: =B36/B$4 -> 0.2630136986 | C84: 0.270617284 | D84: 0.3061528869 | E84: 0.4108894008 | F84: 0.4175705293
A85: Existencias / Ventas | B85: 0.2237442922 | C85: 0.2250684932 | D85: 0.2725890411 | E85: 0.2943835616 | F85: 0.2663013699
A86: Proveedores / ventas | B86: =B43/B4 -> 0.1159817352 | C86: =C43/C4 -> 0.1112272769 | D86: =D43/D4 -> 0.1255959162 | E86: =E43/E4 -> 0.1511552574 | F86: =F43/F4 -> 0.1172770033
A87: anticipos clientes /ventas | B87: =B44/B$4 -> 0.07214611872 | C87: 0.08049360353 | D87: 0.05447546906 | E87: 0.03173788197 | F87: 0.01933125538
A88: hacienda y otros /ventas | B88: 0.03083069227 | C88: 0.03811520922 | D88: 0.02490488628 | E88: 0.01566972701 | F88: 0.01830361703
A89: Pasivo espontáneo / ventas | B89: =B87+B88 -> 0.102976811 | C89: =C87+C88 -> 0.1186088128 | D89: =D87+D88 -> 0.07938035534 | E89: =E87+E88 -> 0.04740760898 | F89: =F87+F88 -> 0.03763487242
A90: NOF / Ventas | B90: =B84+B85-B86-B89 -> 0.2677994447 | C90: =C84+C85-C86-C89 -> 0.2658496874 | D90: =D84+D85-D86-D89 -> 0.3737656565 | E90: =E84+E85-E86-E89 -> 0.5067100961 | F90: =F84+F85-F86-F89 -> 0.5289600235
A94: HIPÓTESIS EN NEGRITA
A95: BALANCE CALCULADO EN FUNCIÓN DEL AÑO QUE TERMINA NO DEL SIGUIENTE
A96: HIPÓTESIS CUENTA DE RDOS
A97: Crecimiento ventas | C97: 0.21 | D97: -0.01 | E97: 0.15 | F97: 0.1
A98: Material en % | B98: 0.542 | C98: 0.53 | D98: 0.603 | E98: 0.614 | F98: 0.6
A99: Mano de obra en % | B99: 0.174 | C99: 0.16 | D99: 0.214 | E99: 0.215 | F99: 0.213
A100: CMV en %
A102: Crecimiento Gastos generales | C102: 0.09836065574 | D102: 0.05223880597 | E102: -0.06382978723 | F102: 0.02272727273
A103: Intereses | B103: 0.052 | C103: 0.051 | D103: 0.063 | E103: 0.074 | F103: 0.078
A104: Amortización % del AF | B104: 0.1 | C104: =B104 -> 0.1 | D104: 0.1 | E104: 0.1 | F104: 0.1
A105: Amortización, fijo en $
A106: Impuestos | B106: 0.25 | C106: 0.25 | D106: 0.25 | E106: 0.25 | F106: 0.25
A108: HIPÓTESIS DE BALANCE
A109: Caja mínima | B109: 0 | C109: 0 | D109: 0
A110: Clientes días | B110: 96 | C110: 98.77530864 | D110: 111.7458037 | E110: 149.9746313 | F110: 152.4132432
A111: Existencias días | B111: 150.6765068 | C111: 155 | D111: 165 | E111: 175 | F111: 162
A112: AF nueva inversión | C112: 1600 | D112: 1600 | E112: 1600
A113: Proveedores días | B113: 69.1521631 | C113: 71.20501478 | D113: 70.71764358 | E113: 82.18023501 | F113: 71.50081806
A114: Anticipo clientes /ventas
A115: Otros acreedores / ventas
A116: Incr. Deuda largo | C116: -150 | D116: -150 | E116: -150 | F116: -150
A117: Payout | B117: 0 | C117: 0 | D117: 0 | E117: 0 | F117: 0
A118: Dividendos pagados | B118: 0 | C118: 1200 | D118: 0 | E118: 0 | F118: 0
H121: COAF
A122: Balance resumido | B122: 2006 | C122: 2007 | D122: 2008 | E122: 2009 | F122: 2010 | H122: 2007-10
A123: Caja excedente | B123: =B59/1000 -> 0.69 | C123: 0.63 | D123: 0.36 | E123: 0.18 | F123: 0.12 | H123: =F123-C123 -> -0.51
A124: NOF o circulante neto | B124: 8.797211759 | C124: 10.5671263 | D124: 14.70805795 | E124: 22.93049008 | F124: 26.33111898 | H124: =F124-C124 -> 15.76399268
A125: AF o activo fijo neto | B125: 15.3 | C125: 16.29 | D125: 16.53 | E125: 15.57 | F125: 15.06 | H125: =F125-C125 -> -1.23
A126: AN o activo neto | B126: =B123+B124+B125 -> 24.78721176 | C126: =C123+C124+C125 -> 27.4871263 | D126: =D123+D124+D125 -> 31.59805795 | E126: =E123+E124+E125 -> 38.68049008 | F126: =F123+F124+F125 -> 41.51111898
A128: Deuda (a largo y corto) | B128: =B64/1000 -> 6.18521384 | C128: =C64/1000 -> 5.252926573 | D128: 8.822935101 | E128: 14.33131223 | F128: 15.28192418 | H128: =F128-C128 -> 10.02899761
A129: Patrimonio neto (Equity) | B129: =B65/1000 -> 18.60199792 | C129: 22.23419973 | D129: 22.77512285 | E129: 24.34917785 | F129: 26.2291948 | H129: =F129-C129 -> 3.994995072
A130: Deuda + Equity | B130: =B128+B129 -> 24.78721176 | C130: =C128+C129 -> 27.4871263 | D130: =D128+D129 -> 31.59805795 | E130: =E128+E129 -> 38.68049008 | F130: =F128+F129 -> 41.51111898
H133: COAF
B134: 2006 | C134: 2007 | D134: 2008 | E134: 2009 | F134: 2010 | H134: 2007-10
A135: NOF | B135: =B124 -> 8.797211759 | C135: =C124 -> 10.5671263 | D135: =D124 -> 14.70805795 | E135: =E124 -> 22.93049008 | F135: =F124 -> 26.33111898 | H135: =F135-C135 -> 15.76399268
A136: FM | B136: =B70/1000 -> 5.251997919 | C136: =C70/1000 -> 7.744199727 | D136: =D70/1000 -> 7.895122853 | E136: =E70/1000 -> 10.27917785 | F136: =F70/1000 -> 12.5191948 | H136: =F136-C136 -> 4.774995072
A137: Crédito necesario (-) + | B137: =B136-B135 -> -3.54521384 | C137: =C136-C135 -> -2.822926573 | D137: =D136-D135 -> -6.812935101 | E137: =E136-E135 -> -12.65131223 | F137: =F136-F135 -> -13.81192418 | H137: =F137-C137 -> -10.98899761
A138: Caja excedente (+)

Sheet Exh 1-2 TO DO
E1: Exhibit 1. Doniphon. P&L and Forecast
A2: Profit and Loss Statement | D2: Past P&L | I2: Forecast
A3: (Thousands of euros) | B3: 2018 | C3: 2019 | D3: =C3+1 -> 2020 | E3: =D3+1 -> 2021 | F3: =E3+1 -> 2022 | I3: =F3+1 -> 2023 | J3: =I3+1 -> 2024
A4: Sales | B4: 32850 | C4: =B4*(1+C97) -> 39748.5 | D4: =C4*(1+D97) -> 39351.015 | E4: =D4*(1+E97) -> 45253.66725 | F4: =E4*(1+F97) -> 49779.03398
A5: Cost of components | B5: =B4*B98 -> 17804.7 | C5: =C4*C98 -> 21066.705 | D5: =D4*D98 -> 23728.66204 | E5: =E4*E98 -> 27785.75169 | F5: =F4*F98 -> 29867.42039 | I5: ------- | J5: -------
A6: Labor | B6: =B4*B99 -> 5715.9 | C6: =C4*C99 -> 6359.76 | D6: =D4*D99 -> 8421.11721 | E6: =E4*E99 -> 9729.538459 | F6: =F4*F99 -> 10602.93424 | I6: ------- | J6: -------
A7: Total COGS | B7: =B5+B6 -> 23520.6 | C7: =C5+C6 -> 27426.465 | D7: =D5+D6 -> 32149.77925 | E7: =E5+E6 -> 37515.29015 | F7: =F5+F6 -> 40470.35462 | I7: ------- | J7: -------
A8: Gross Margin | B8: =B4-B7 -> 9329.4 | C8: =C4-C7 -> 12322.035 | D8: =D4-D7 -> 7201.235745 | E8: =E4-E7 -> 7738.3771 | F8: =F4-F7 -> 9308.679353 | I8: =I4*I21 -> 0 | J8: =J4*J21 -> 0
A9: Operating Expenses (Opex ) | B9: 3660 | C9: 4020 | D9: 4230 | E9: 3960 | F9: 4050
A10: EBITDA | B10: =B8-B9 -> 5669.4 | C10: =C8-C9 -> 8302.035 | D10: =D8-D9 -> 2971.235745 | E10: =E8-E9 -> 3778.3771 | F10: =F8-F9 -> 5258.679353 | I10: =I8-I9 -> 0 | J10: 0
A11: Depreciation | B11: 1591.2 | C11: 1591.2 | D11: 1694.16 | E11: 1719.12 | F11: 1560 | I11: 1500 | J11: 1500
A12: EBIT | B12: =B10-B11 -> 4078.2 | C12: =C10-C11 -> 6710.835 | D12: =D10-D11 -> 1277.075745 | E12: =E10-E11 -> 2059.2571 | F12: =F10-F11 -> 3698.679353 | I12: =I10-I11 -> -1500 | J12: -1500
A13: Extraordinary Results | B13: 0 | C13: 0 | D13: 0 | E13: 1100 | F13: 0 | I13: 0 | J13: 0
A14: Financial Expenses | B14: =B103*(B48+B46) -> 321.6311197 | C14: =C103*(C48+C46) -> 91.8 | D14: =D103*(D48+D46) -> 103.95 | E14: =E103*(E48+E46) -> 111 | F14: =F103*(F48+F46) -> 105.3
A15: EBT | B15: =B12+B13-B14 -> 3756.56888 | C15: =C12+C13-C14 -> 6619.035 | D15: =D12+D13-D14 -> 1173.125745 | E15: =E12+E13-E14 -> 3048.2571 | F15: =F12+F13-F14 -> 3593.379353 | I15: =I12+I13-I14 -> -1500 | J15: =J12+J13-J14 -> -1500
A16: Taxes (25%) | B16: =B15*B106 -> 939.1422201 | C16: =C15*C106 -> 1654.75875 | D16: =D15*D106 -> 293.2814363 | E16: =E15*E106 -> 762.0642749 | F16: =F15*F106 -> 898.3448383
A17: Net Income | B17: =B15-B16 -> 2817.42666 | C17: =C15-C16 -> 4964.27625 | D17: =D15-D16 -> 879.8443088 | E17: =E15-E16 -> 2286.192825 | F17: =F15-F16 -> 2695.034515 | I17: =I15-I16 -> -1500 | J17: =J15-J16 -> -1500
A19: P&L Ratios (Profitability Ratios) | I19: P&L Assumptions
A20: Growth of Sales | B20: 0.41 | C20: =C97 -> 0.21 | I20: 0 | J20: 0
A21: Gross Margin / Sales | B21: =B8/B4 -> 0.284 | I21: 0.2 | J21: 0.21
A22: Opex / Sales | B22: =B9/B4 -> 0.1114155251
A23: Increase in Opex | B23: na | I23: 0.05 | J23: 0.05
A24: EBITDA / Sales | B24: =B10/B4 -> 0.1725844749
A25: ROS, Net Income / Sales | B25: =B17/B4 -> 0.08576641279
A26: ROE, Net Income / Equity | B26: =B17/B49 -> 0.1784924414
A27: RONA, EBIT / Net Assets | B27: =B12/B62 -> 0.1645283883
A28: Cost of Debt | B28: =B103 -> 0.052 | I28: 0.07 | J28: 0.07
A29: EBIT / Fin expenses | B29: =B12/B14 -> 12.67974319
E31: Exhibit 2. Doniphon. Balance sheet and Forecast
A33: Assets | H33: Differences
A34: (Thousands of euros) | B34: =B3 -> 2018 | C34: =C3 -> 2019 | D34: =D3 -> 2020 | E34: =E3 -> 2021 | F34: =F3 -> 2022 | H34: 2019-22
A35: Cash | B35: 690 | C35: 630 | D35: 360 | E35: 180 | F35: 120
A36: Receivables | B36: =B4/365*B110 -> 8640 | C36: 10756.63111 | D36: 12047.42684 | E36: 18594.25222 | F36: 20786.25756
A37: Inventory | B37: 7350 | C37: 8946.135 | D37: 10726.65544 | E37: 13321.93574 | F37: 13256.22494
A38: Current Assets, CA | B38: =SUM(B35:B37) -> 16680 | C38: =SUM(C35:C37) -> 20332.76611 | D38: =SUM(D35:D37) -> 23134.08229 | E38: =SUM(E35:E37) -> 32096.18796 | F38: =SUM(F35:F37) -> 34162.4825
A39: Fixed Assets net, FA | B39: 15300 | C39: 16290 | D39: 16530 | E39: 15570 | F39: 15060
A40: Total Assets | B40: =B38+B39 -> 31980 | C40: =C38+C39 -> 36622.76611 | D40: =D38+D39 -> 39664.08229 | E40: =E38+E39 -> 47666.18796 | F40: =F38+F39 -> 49222.4825
A42: Liabilities + Equity
A43: Payables | B43: =B54/365*B113 -> 3810 | C43: =C54/365*C113 -> 4421.117417 | D43: =D54/365*D113 -> 0 | E43: =E54/365*E113 -> 0 | F43: =F54/365*F113 -> 0
A44: Advances from customers | B44: 2370 | C44: 3199.5 | D44: 2143.665 | E44: 1436.25555 | F44: 962.2912185
A45: Taxes and other payables | B45: 1012.788241 | C45: 1515.022394 | D45: 980.0325537 | E45: 709.1126118 | F45: 911.1363741
A46: Bank Credit | B46: =IF(B71<0,(-B71+B35),0) -> 4235.21384 | C46: =IF(C71<0,(-C71+C35),0) -> 0 | D46: =IF(D71<0,(-D71+D35),0) -> 0 | E46: =IF(E71<0,(-E71+E35),0) -> 0 | F46: =IF(F71<0,(-F71+F35),0) -> 0
A47: Current Liabilities | B47: =B43+B44+B45+B46 -> 11428.00208 | C47: =C43+C44+C45+C46 -> 9135.639811 | D47: =D43+D44+D45+D46 -> 3123.697554 | E47: =E43+E44+E45+E46 -> 2145.368162 | F47: =F43+F44+F45+F46 -> 1873.427593
A48: Loan (Long-term Debt) | B48: 1950 | C48: =B48+C116 -> 1800 | D48: =C48+D116 -> 1650 | E48: =D48+E116 -> 1500 | F48: =E48+F116 -> 1350
A49: Capital & reserves | B49: 15784.57126 | C49: =B49+B50-C118 -> 17401.99792 | D49: =C49+C50 -> 22366.27417 | E49: =D49+D50 -> 23246.11848 | F49: =E49+E50 -> 25532.3113
A50: Net income for the year | B50: =B17 -> 2817.42666 | C50: =C17 -> 4964.27625 | D50: =D17 -> 879.8443088 | E50: =E17 -> 2286.192825 | F50: =F17 -> 2695.034515
A51: Equity | B51: =B49+B50 -> 18601.99792 | C51: =C49+C50 -> 22366.27417 | D51: =D49+D50 -> 23246.11848 | E51: =E49+E50 -> 25532.3113 | F51: =F49+F50 -> 28227.34582
A52: Liabilities + Equity | B52: =B47+B48+B51 -> 31980 | C52: =C47+C48+C51 -> 33301.91398 | D52: =D47+D48+D51 -> 28019.81603 | E52: =E47+E48+E51 -> 29177.67946 | F52: =F47+F48+F51 -> 31450.77341
A54: Purchases | B54: 20110 | C54: =C5+(C37-B37) -> 22662.84
A55: Dividends paid | C55: =B49+B50-C49 -> 1200
A56: Capex
H57: =H33 -> Differences | I57: Forecast
A58: Short Balance Sheet | B58: =B3 -> 2018 | C58: =C3 -> 2019 | D58: =D3 -> 2020 | E58: =E3 -> 2021 | F58: =F3 -> 2022 | H58: =H34 -> 2019-22 | I58: =F58+1 -> 2023 | J58: =I58+1 -> 2024
A59: Cash surplus | B59: =B35-B109 -> 690 | C59: =C35-C109 -> 630 | D59: =D35-D109 -> 360 | E59: =E35-E109 -> 180 | F59: =F35-F109 -> 120 | I59: 0 | J59: 0
A60: NFO or Current Assets, Net | B60: =B109+B36+B37-B43-B44-B45 -> 8797.211759
A61: FA or Fixed Assets, Net | B61: =B39 -> 15300 | C61: =C39 -> 16290 | D61: =D39 -> 16530 | E61: =E39 -> 15570 | F61: =F39 -> 15060 | I61: =F61 -> 15060 | J61: =I61 -> 15060
A62: NA, Net Assets | B62: =B59+B60+B61 -> 24787.21176 | I62: =I59+I60+I61 -> 15060 | J62: 15060
A64: D, Debt | B64: =B46+B48 -> 6185.21384 | H64: =F64-C64 -> 0
A65: E, Equity | B65: =B51 -> 18601.99792 | H65: =F65-C65 -> 0
A66: Debt + Equity | B66: =B64+B65 -> 24787.21176 | I66: =I64+I65 -> 0 | J66: =J64+J65 -> 0
A68: Shortest Balance Sheet: NFO vs WC
A69: NFO | B69: =B60 -> 8797.211759
A70: WC | B70: =B48+B51-B39 -> 5251.997919
A71: Credit Needed (-) or | B71: =B70-B69 -> -3545.21384
A72: Cash Surplus (+)
A74: Balance Sheet Ratios | H74: En% Sales | I74: Balance Assumptions
A75: Receivables in Days | B75: =B36/B4*365 -> 96 | I75: ----- | J75: ----- | L75: 120 | M75: =L75/365 -> 0.3287671233
A76: Inventory in Days | B76: 150.6765068 | I76: ----- | J76: -----
A77: Payables in Days | B77: =B43/B54*365 -> 69.1521631 | I77: ----- | J77: -----
A78: NFO / Sales in % | B78: =B69/B4 -> 0.2677994447 | I78: 0.42 | J78: 0.4
A79: Debt / EBITDA | B79: =B64/B10 -> 1.090982086
A80: Debt / Net Income | B80: =B64/B17 -> 2.19534156
J81: © E.M. Abascal 2023
A84: Clientes / Ventas | B84: =B36/B$4 -> 0.2630136986 | C84: 0.270617284 | D84: 0.3061528869 | E84: 0.4108894008 | F84: 0.4175705293
A85: Existencias / Ventas | B85: 0.2237442922 | C85: 0.2250684932 | D85: 0.2725890411 | E85: 0.2943835616 | F85: 0.2663013699
A86: Proveedores / ventas | B86: =B43/B4 -> 0.1159817352 | C86: =C43/C4 -> 0.1112272769 | D86: =D43/D4 -> 0 | E86: =E43/E4 -> 0 | F86: =F43/F4 -> 0
A87: anticipos clientes /ventas | B87: =B44/B$4 -> 0.07214611872 | C87: 0.08049360353 | D87: 0.05447546906 | E87: 0.03173788197 | F87: 0.01933125538
A88: hacienda y otros /ventas | B88: 0.03083069227 | C88: 0.03811520922 | D88: 0.02490488628 | E88: 0.01566972701 | F88: 0.01830361703
A89: Pasivo espontáneo / ventas | B89: =B87+B88 -> 0.102976811 | C89: =C87+C88 -> 0.1186088128 | D89: =D87+D88 -> 0.07938035534 | E89: =E87+E88 -> 0.04740760898 | F89: =F87+F88 -> 0.03763487242
A90: NOF / Ventas | B90: =B84+B85-B86-B89 -> 0.2677994447 | C90: =C84+C85-C86-C89 -> 0.2658496874 | D90: =D84+D85-D86-D89 -> 0.4993615726 | E90: =E84+E85-E86-E89 -> 0.6578653535 | F90: =F84+F85-F86-F89 -> 0.6462370267
A94: HIPÓTESIS EN NEGRITA
A95: BALANCE CALCULADO EN FUNCIÓN DEL AÑO QUE TERMINA NO DEL SIGUIENTE
A96: HIPÓTESIS CUENTA DE RDOS
A97: Crecimiento ventas | C97: 0.21 | D97: -0.01 | E97: 0.15 | F97: 0.1
A98: Material en % | B98: 0.542 | C98: 0.53 | D98: 0.603 | E98: 0.614 | F98: 0.6
A99: Mano de obra en % | B99: 0.174 | C99: 0.16 | D99: 0.214 | E99: 0.215 | F99: 0.213
A100: CMV en %
A102: Crecimiento Gastos generales | C102: 0.09836065574 | D102: 0.05223880597 | E102: -0.06382978723 | F102: 0.02272727273
A103: Intereses | B103: 0.052 | C103: 0.051 | D103: 0.063 | E103: 0.074 | F103: 0.078
A104: Amortización % del AF | B104: 0.1 | C104: =B104 -> 0.1 | D104: 0.1 | E104: 0.1 | F104: 0.1
A105: Amortización, fijo en $
A106: Impuestos | B106: 0.25 | C106: 0.25 | D106: 0.25 | E106: 0.25 | F106: 0.25
A108: HIPÓTESIS DE BALANCE
A109: Caja mínima | B109: 0 | C109: 0 | D109: 0
A110: Clientes días | B110: 96 | C110: 98.77530864 | D110: 111.7458037 | E110: 149.9746313 | F110: 152.4132432
A111: Existencias días | B111: 150.6765068 | C111: 155 | D111: 165 | E111: 175 | F111: 162
A112: AF nueva inversión | C112: 1600 | D112: 1600 | E112: 1600
A113: Proveedores días | B113: 69.1521631 | C113: 71.20501478 | D113: 70.71764358 | E113: 82.18023501 | F113: 71.50081806
A114: Anticipo clientes /ventas
A115: Otros acreedores / ventas
A116: Incr. Deuda largo | C116: -150 | D116: -150 | E116: -150 | F116: -150
A117: Payout | B117: 0 | C117: 0 | D117: 0 | E117: 0 | F117: 0
A118: Dividendos pagados | B118: 0 | C118: 1200 | D118: 0 | E118: 0 | F118: 0
H121: COAF
A122: Balance resumido | B122: 2006 | C122: 2007 | D122: 2008 | E122: 2009 | F122: 2010 | H122: 2007-10
A123: Caja excedente | B123: =B59/1000 -> 0.69 | C123: 0.63 | D123: 0.36 | E123: 0.18 | F123: 0.12 | H123: =F123-C123 -> -0.51
A124: NOF o circulante neto | B124: 8.797211759 | C124: 0 | D124: 0 | E124: 0 | F124: 0 | H124: =F124-C124 -> 0
A125: AF o activo fijo neto | B125: 15.3 | C125: 16.29 | D125: 16.53 | E125: 15.57 | F125: 15.06 | H125: =F125-C125 -> -1.23
A126: AN o activo neto | B126: =B123+B124+B125 -> 24.78721176 | C126: =C123+C124+C125 -> 16.92 | D126: =D123+D124+D125 -> 16.89 | E126: =E123+E124+E125 -> 15.75 | F126: =F123+F124+F125 -> 15.18
A128: Deuda (a largo y corto) | B128: =B64/1000 -> 6.18521384 | C128: =C64/1000 -> 0 | D128: 0 | E128: 0 | F128: 0 | H128: =F128-C128 -> 0
A129: Patrimonio neto (Equity) | B129: =B65/1000 -> 18.60199792 | C129: 0 | D129: 0 | E129: 0 | F129: 0 | H129: =F129-C129 -> 0
A130: Deuda + Equity | B130: =B128+B129 -> 24.78721176 | C130: =C128+C129 -> 0 | D130: =D128+D129 -> 0 | E130: =E128+E129 -> 0 | F130: =F128+F129 -> 0
H133: COAF
B134: 2006 | C134: 2007 | D134: 2008 | E134: 2009 | F134: 2010 | H134: 2007-10
A135: NOF | B135: =B124 -> 8.797211759 | C135: =C124 -> 0 | D135: =D124 -> 0 | E135: =E124 -> 0 | F135: =F124 -> 0 | H135: =F135-C135 -> 0
A136: FM | B136: =B70/1000 -> 5.251997919 | C136: =C70/1000 -> 0 | D136: =D70/1000 -> 0 | E136: =E70/1000 -> 0 | F136: =F70/1000 -> 0 | H136: =F136-C136 -> 0
A137: Crédito necesario (-) + | B137: =B136-B135 -> -3.54521384 | C137: =C136-C135 -> 0 | D137: =D136-D135 -> 0 | E137: =E136-E135 -> 0 | F137: =F136-F135 -> 0 | H137: =F137-C137 -> 0
A138: Caja excedente (+)

Sheet Anex 1-2 (hidden)
E1: Anexo 1. Doniphon. Cuenta de PyG y Forecast
A2: Cuenta de PyG | D2: Datos pasados | I2: Forecast
A3: (miles de euros) | B3: 2018 | C3: 2019 | D3: =C3+1 -> 2020 | E3: =D3+1 -> 2021 | F3: =E3+1 -> 2022 | I3: =F3+1 -> 2023 | J3: =I3+1 -> 2024
A4: Ventas | B4: 32850 | C4: =B4*(1+C97) -> 39748.5 | D4: =C4*(1+D97) -> 39351.015 | E4: =D4*(1+E97) -> 45253.66725 | F4: =E4*(1+F97) -> 49779.03398 | I4: =F4*(1+I20) -> 49779.03398 | J4: =I4*(1+J20) -> 49779.03398
A5: Coste de materiales | B5: =B4*B98 -> 17804.7 | C5: =C4*C98 -> 21066.705 | D5: =D4*D98 -> 23728.66204 | E5: =E4*E98 -> 27785.75169 | F5: =F4*F98 -> 29867.42039 | I5: ------- | J5: -------
A6: Mano de obra | B6: =B4*B99 -> 5715.9 | C6: =C4*C99 -> 6359.76 | D6: =D4*D99 -> 8421.11721 | E6: =E4*E99 -> 9729.538459 | F6: =F4*F99 -> 10602.93424 | I6: ------- | J6: -------
A7: Total CMV | B7: =B5+B6 -> 23520.6 | C7: =C5+C6 -> 27426.465 | D7: =D5+D6 -> 32149.77925 | E7: =E5+E6 -> 37515.29015 | F7: =F5+F6 -> 40470.35462 | I7: ------- | J7: -------
A8: Margen bruto | B8: =B4-B7 -> 9329.4 | C8: =C4-C7 -> 12322.035 | D8: =D4-D7 -> 7201.235745 | E8: =E4-E7 -> 7738.3771 | F8: =F4-F7 -> 9308.679353 | I8: =I4*I21 -> 9955.806795 | J8: =J4*J21 -> 10453.59713
A9: Gastos generales (Opex) | B9: 3660 | C9: 4020 | D9: 4230 | E9: 3960 | F9: 4050 | I9: =F9*(1+I23) -> 4252.5 | J9: =I9*(1+J23) -> 4465.125
A10: EBITDA | B10: =B8-B9 -> 5669.4 | C10: =C8-C9 -> 8302.035 | D10: =D8-D9 -> 2971.235745 | E10: =E8-E9 -> 3778.3771 | F10: =F8-F9 -> 5258.679353 | I10: =I8-I9 -> 5703.306795 | J10: 5988.472135
A11: Amortización | B11: 1591.2 | C11: 1591.2 | D11: 1694.16 | E11: 1719.12 | F11: 1560 | I11: 1500 | J11: 1500
A12: EBIT o BAIT | B12: =B10-B11 -> 4078.2 | C12: =C10-C11 -> 6710.835 | D12: =D10-D11 -> 1277.075745 | E12: =E10-E11 -> 2059.2571 | F12: =F10-F11 -> 3698.679353 | I12: =I10-I11 -> 4203.306795 | J12: 4488.472135
A13: Resultados extraordinarios | B13: 0 | C13: 0 | D13: 0 | E13: 1100 | F13: 0 | I13: 0 | J13: 0
A14: Gastos financieros | B14: =B103*(B48+B46) -> 321.6311197 | C14: =C103*(C48+C46) -> 267.8992552 | D14: =D103*(D48+D46) -> 555.8449114 | E14: =E103*(E48+E46) -> 1060.517105 | F14: =F103*(F48+F46) -> 1191.990086 | I14: =I28*F64 -> 1069.734693 | J14: =J28*I64 -> 517.1474276
A15: Bº antes impuestos | B15: =B12+B13-B14 -> 3756.56888 | C15: =C12+C13-C14 -> 6442.935745 | D15: =D12+D13-D14 -> 721.2308336 | E15: =E12+E13-E14 -> 2098.739995 | F15: =F12+F13-F14 -> 2506.689267 | I15: =I12+I13-I14 -> 3133.572102 | J15: =J12+J13-J14 -> 3971.324707
A16: Impuestos (25%) | B16: =B15*B106 -> 939.1422201 | C16: =C15*C106 -> 1610.733936 | D16: =D15*D106 -> 180.3077084 | E16: =E15*E106 -> 524.6849987 | F16: =F15*F106 -> 626.6723168 | I16: =0.25*I15 -> 783.3930256 | J16: =0.25*J15 -> 992.8311768
A17: Beneficio neto, BN | B17: =B15-B16 -> 2817.42666 | C17: =C15-C16 -> 4832.201809 | D17: =D15-D16 -> 540.9231252 | E17: =E15-E16 -> 1574.054996 | F17: =F15-F16 -> 1880.01695 | I17: =I15-I16 -> 2350.179077 | J17: =J15-J16 -> 2978.49353
A19: Ratios de PyG | I19: Hipótesis de PyG
A20: Crecimiento de ventas | B20: 0.41 | C20: =C97 -> 0.21 | D20: =D4/C4-1 -> -0.01 | E20: =E4/D4-1 -> 0.15 | F20: 0.1 | I20: 0 | J20: 0
A21: Margen bruto / Ventas | B21: =B8/B4 -> 0.284 | C21: =C8/C4 -> 0.31 | D21: =D8/D4 -> 0.183 | E21: =E8/E4 -> 0.171 | F21: =F8/F4 -> 0.187 | I21: 0.2 | J21: 0.21
A22: Opex / Ventas | B22: =B9/B4 -> 0.1114155251 | C22: =C9/C4 -> 0.1011358919 | D22: =D9/D4 -> 0.1074940507 | E22: =E9/E4 -> 0.08750672024 | F22: =F9/F4 -> 0.08135955394 | I22: =I9/I4 -> 0.08542753164 | J22: 0.08969890822
A23: Aumento de Opex | B23: na | C23: =C9/B9-1 -> 0.09836065574 | D23: =D9/C9-1 -> 0.05223880597 | E23: =E9/D9-1 -> -0.06382978723 | F23: =F9/E9-1 -> 0.02272727273 | I23: 0.05 | J23: 0.05
A24: EBITDA / Ventas | B24: =B10/B4 -> 0.1725844749 | C24: =C10/C4 -> 0.2088641081 | D24: =D10/D4 -> 0.07550594934 | E24: =E10/E4 -> 0.08349327976 | F24: =F10/F4 -> 0.1056404461 | I24: =I10/I4 -> 0.1145724684 | J24: =J10/J4 -> 0.1203010918
A25: ROS (Bº neto / Ventas) | B25: =B17/B4 -> 0.08576641279 | C25: =C17/C4 -> 0.1215694129 | D25: =D17/D4 -> 0.0137461035 | E25: =E17/E4 -> 0.03478292681 | F25: =F17/F4 -> 0.03776724457 | I25: =I17/I4 -> 0.0472122275 | J25: =J17/J4 -> 0.05983429755
A26: ROE (Bº neto / Equity) | B26: =B17/B49 -> 0.1784924414 | C26: =C17/C49 -> 0.2776808635 | D26: =D17/D49 -> 0.02432842791 | E26: =E17/E49 -> 0.06911290912 | F26: =F17/F49 -> 0.07721069525 | I26: =I17/F65 -> 0.08960164789 | J26: =J17/I65 -> 0.104218292
A27: RONA (EBIT / Activo neto) | B27: =B12/B62 -> 0.1645283883 | C27: =C12/C62 -> 0.2441446562 | D27: =D12/D62 -> 0.04041627327 | E27: =E12/E62 -> 0.05323761657 | F27: =F12/F62 -> 0.08910093113 | I27: =I12/I62 -> 0.1168650177 | J27: =J12/J62 -> 0.1283461549
A28: Coste deuda | B28: =B103 -> 0.052 | C28: =C103 -> 0.051 | D28: =D103 -> 0.063 | E28: =E103 -> 0.074 | F28: =F103 -> 0.078 | I28: 0.07 | J28: 0.07
A29: EBIT / Gastos financieros | B29: =B12/B14 -> 12.67974319 | C29: =C12/C14 -> 25.04984568 | D29: =D12/D14 -> 2.297539689 | E29: =E12/E14 -> 1.941748124 | F29: =F12/F14 -> 3.102944728 | I29: =I12/I14 -> 3.92929838 | J29: =J12/J14 -> 8.6792893
E31: Anexo 2. Doniphon. Balances y Forecast
A33: Activo | H33: Diferencias
A34: (miles de euros) | B34: =B3 -> 2018 | C34: =C3 -> 2019 | D34: =D3 -> 2020 | E34: =E3 -> 2021 | F34: =F3 -> 2022 | H34: 2019-22
A35: Caja | B35: 690 | C35: 630 | D35: 360 | E35: 180 | F35: 120 | H35: =F35-C35 -> -510
A36: Clientes | B36: =B4/365*B110 -> 8640 | C36: 10756.63111 | D36: 12047.42684 | E36: 18594.25222 | F36: 20786.25756 | H36: =F36-C36 -> 10029.62645
A37: Existencias | B37: 7350 | C37: 8946.135 | D37: 10726.65544 | E37: 13321.93574 | F37: 13256.22494 | H37: =F37-C37 -> 4310.089938
A38: Activo corriente, AC | B38: =SUM(B35:B37) -> 16680 | C38: =SUM(C35:C37) -> 20332.76611 | D38: =SUM(D35:D37) -> 23134.08229 | E38: =SUM(E35:E37) -> 32096.18796 | F38: =SUM(F35:F37) -> 34162.4825
A39: Activo fijo neto, AF | B39: 15300 | C39: 16290 | D39: 16530 | E39: 15570 | F39: 15060 | H39: =F39-C39 -> -1230
A40: Activo total | B40: =B38+B39 -> 31980 | C40: =C38+C39 -> 36622.76611 | D40: =D38+D39 -> 39664.08229 | E40: =E38+E39 -> 47666.18796 | F40: =F38+F39 -> 49222.4825
A42: Pasivo
A43: Proveedores | B43: =B54/365*B113 -> 3810 | C43: =C54/365*C113 -> 4421.117417 | D43: =D54/365*D113 -> 4942.326782 | E43: =E54/365*E113 -> 6840.329723 | F43: =F54/365*F113 -> 5837.935931 | H43: =F43-C43 -> 1416.818514
A44: Anticipos de clientes | B44: 2370 | C44: 3199.5 | D44: 2143.665 | E44: 1436.25555 | F44: 962.2912185 | H44: -2237.208781
A45: Hacienda y otros acreedores | B45: 1012.788241 | C45: 1515.022394 | D45: 980.0325537 | E45: 709.1126118 | F45: 911.1363741 | H45: -603.8860197
A46: Crédito bancario | B46: =IF(B71<0,(-B71+B35),0) -> 4235.21384 | C46: =IF(C71<0,(-C71+C35),0) -> 3452.926573 | D46: =IF(D71<0,(-D71+D35),0) -> 7172.935101 | E46: =IF(E71<0,(-E71+E35),0) -> 12831.31223 | F46: =IF(F71<0,(-F71+F35),0) -> 13931.92418 | H46: 10478.99761
A47: Pasivo corriente | B47: =B43+B44+B45+B46 -> 11428.00208 | C47: =C43+C44+C45+C46 -> 12588.56638 | D47: =D43+D44+D45+D46 -> 15238.95944 | E47: =E43+E44+E45+E46 -> 21817.01012 | F47: =F43+F44+F45+F46 -> 21643.2877
A48: Préstamo bancario | B48: 1950 | C48: =B48+C116 -> 1800 | D48: =C48+D116 -> 1650 | E48: =D48+E116 -> 1500 | F48: =E48+F116 -> 1350 | H48: -450
A49: Capital y reservas | B49: 15784.57126 | C49: =B49+B50-C118 -> 17401.99792 | D49: =C49+C50 -> 22234.19973 | E49: =D49+D50 -> 22775.12285 | F49: =E49+E50 -> 24349.17785
A50: Beneficio del año | B50: =B17 -> 2817.42666 | C50: =C17 -> 4832.201809 | D50: =D17 -> 540.9231252 | E50: =E17 -> 1574.054996 | F50: =F17 -> 1880.01695
A51: Patrimonio neto | B51: =B49+B50 -> 18601.99792 | C51: =C49+C50 -> 22234.19973 | D51: =D49+D50 -> 22775.12285 | E51: =E49+E50 -> 24349.17785 | F51: =F49+F50 -> 26229.1948 | H51: =F51-C51 -> 3994.995072
A52: Total pasivo y Patrimonio | B52: =B47+B48+B51 -> 31980 | C52: =C47+C48+C51 -> 36622.76611 | D52: =D47+D48+D51 -> 39664.08229 | E52: =E47+E48+E51 -> 47666.18796 | F52: =F47+F48+F51 -> 49222.4825
A54: Pro memoria: Compras | B54: 20110 | C54: =C5+(C37-B37) -> 22662.84 | D54: =D5+(D37-C37) -> 25509.18249 | E54: =E5+(E37-D37) -> 30381.03199 | F54: =F5+(F37-E37) -> 29801.70958
A55: Pro memoria: Dividendos | C55: =B49+B50-C49 -> 1200 | D55: =C49+C50-D49 -> 0 | E55: =D49+D50-E49 -> 0 | F55: =E49+E50-F49 -> 0
A56: Capex | D56: =D39-C39+D11 -> 1934.16 | E56: =E39-D39+E11 -> 759.12 | F56: =F39-E39+F11 -> 1050
H57: =H33 -> Diferencias | I57: Forecast
A58: Balance corto | B58: =B3 -> 2018 | C58: =C3 -> 2019 | D58: =D3 -> 2020 | E58: =E3 -> 2021 | F58: =F3 -> 2022 | H58: =H34 -> 2019-22 | I58: =F58+1 -> 2023 | J58: =I58+1 -> 2024
A59: Caja excedente | B59: =B35-B109 -> 690 | C59: =C35-C109 -> 630 | D59: =D35-D109 -> 360 | E59: =E35-E109 -> 180 | F59: =F35-F109 -> 120 | H59: =F59-C59 -> -510 | I59: 0 | J59: 0
A60: NOF o circulante neto | B60: =B109+B36+B37-B43-B44-B45 -> 8797.211759 | C60: =C109+C36+C37-C43-C44-C45 -> 10567.1263 | D60: =D109+D36+D37-D43-D44-D45 -> 14708.05795 | E60: =E109+E36+E37-E43-E44-E45 -> 22930.49008 | F60: =F109+F36+F37-F43-F44-F45 -> 26331.11898 | H60: =F60-C60 -> 15763.99268 | I60: =I4*I78 -> 20907.19427 | J60: =J4*J78 -> 19911.61359
A61: AF o activo fijo neto | B61: =B39 -> 15300 | C61: =C39 -> 16290 | D61: =D39 -> 16530 | E61: =E39 -> 15570 | F61: =F39 -> 15060 | H61: =F61-C61 -> -1230 | I61: =F61 -> 15060 | J61: =I61 -> 15060
A62: AN o activo neto | B62: =B59+B60+B61 -> 24787.21176 | C62: =C59+C60+C61 -> 27487.1263 | D62: =D59+D60+D61 -> 31598.05795 | E62: =E59+E60+E61 -> 38680.49008 | F62: =F59+F60+F61 -> 41511.11898 | I62: =I59+I60+I61 -> 35967.19427 | J62: 34971.61359
A64: Deuda (a largo y corto) | B64: =B46+B48 -> 6185.21384 | C64: =C46+C48 -> 5252.926573 | D64: =D46+D48 -> 8822.935101 | E64: =E46+E48 -> 14331.31223 | F64: =F46+F48 -> 15281.92418 | H64: =F64-C64 -> 10028.99761 | I64: =I62-I65 -> 7387.820394 | J64: =J62-J65 -> 3413.746184
A65: Patrimonio neto (Equity) | B65: =B51 -> 18601.99792 | C65: =C51 -> 22234.19973 | D65: =D51 -> 22775.12285 | E65: =E51 -> 24349.17785 | F65: =F51 -> 26229.1948 | H65: =F65-C65 -> 3994.995072 | I65: =F65+I17 -> 28579.37388 | J65: =I65+J17 -> 31557.86741
A66: Deuda + Equity | B66: =B64+B65 -> 24787.21176 | C66: =C64+C65 -> 27487.1263 | D66: =D64+D65 -> 31598.05795 | E66: =E64+E65 -> 38680.49008 | F66: =F64+F65 -> 41511.11898 | I66: =I64+I65 -> 35967.19427 | J66: =J64+J65 -> 34971.61359
A68: Extracto del balance, NOF vs FM
A69: NOF | B69: =B60 -> 8797.211759 | C69: =C60 -> 10567.1263 | D69: =D60 -> 14708.05795 | E69: =E60 -> 22930.49008 | F69: =F60 -> 26331.11898 | H69: =F69-C69 -> 15763.99268
A70: FM | B70: =B48+B51-B39 -> 5251.997919 | C70: =C48+C51-C39 -> 7744.199727 | D70: =D48+D51-D39 -> 7895.122853 | E70: =E48+E51-E39 -> 10279.17785 | F70: =F48+F51-F39 -> 12519.1948 | H70: =F70-C70 -> 4774.995072
A71: Crédito necesario (-) o | B71: =B70-B69 -> -3545.21384 | C71: =C70-C69 -> -2822.926573 | D71: =D70-D69 -> -6812.935101 | E71: =E70-E69 -> -12651.31223 | F71: =F70-F69 -> -13811.92418 | H71: =F71-C71 -> -10988.99761
A72: Caja excedente (+)
A74: Ratios de balance | H74: En% Vtas | I74: Hipótesis de Balance
A75: Días de cobro | B75: =B36/B4*365 -> 96 | C75: 98.77530864 | D75: 111.7458037 | E75: 149.9746313 | F75: 152.4132432 | H75: =F36/F4 -> 0.4175705293 | I75: ----- | J75: ----- | L75: 120 | M75: =L75/365 -> 0.3287671233
A76: Días de existencias | B76: 150.6765068 | C76: 155 | D76: 165 | E76: 175 | F76: 162 | H76: =F37/F4 -> 0.2663013699 | I76: ----- | J76: -----
A77: Días de pago | B77: =B43/B54*365 -> 69.1521631 | C77: =C43/C54*365 -> 71.20501478 | D77: =D43/D54*365 -> 70.71764358 | E77: =E43/E54*365 -> 82.18023501 | F77: =F43/F54*365 -> 71.50081806 | H77: =(F43+F44+F45)/F4 -> 0.1549118757 | I77: ----- | J77: -----
A78: NOF / Ventas en % | B78: =B69/B4 -> 0.2677994447 | C78: =C69/C4 -> 0.2658496874 | D78: =D69/D4 -> 0.3737656565 | E78: =E69/E4 -> 0.5067100961 | F78: =F69/F4 -> 0.5289600235 | H78: =H75+H76-H77 -> 0.5289600235 | I78: 0.42 | J78: 0.4
A79: Deuda / EBITDA | B79: =B64/B10 -> 1.090982086 | C79: =C64/C10 -> 0.632727587 | D79: =D64/D10 -> 2.969449703 | E79: =E64/E10 -> 3.792980916 | F79: =F64/F10 -> 2.906038409
A80: Deuda / Bº Neto | B80: =B64/B17 -> 2.19534156 | C80: =C64/C17 -> 1.087066886 | D80: =D64/D17 -> 16.31088539 | E80: =E64/E17 -> 9.10470871 | F80: =F64/F17 -> 8.128609786
J81: © E.M. Abascal 2023
A84: Clientes / Ventas | B84: =B36/B$4 -> 0.2630136986 | C84: 0.270617284 | D84: 0.3061528869 | E84: 0.4108894008 | F84: 0.4175705293
A85: Existencias / Ventas | B85: 0.2237442922 | C85: 0.2250684932 | D85: 0.2725890411 | E85: 0.2943835616 | F85: 0.2663013699
A86: Proveedores / ventas | B86: =B43/B4 -> 0.1159817352 | C86: =C43/C4 -> 0.1112272769 | D86: =D43/D4 -> 0.1255959162 | E86: =E43/E4 -> 0.1511552574 | F86: =F43/F4 -> 0.1172770033
A87: anticipos clientes /ventas | B87: =B44/B$4 -> 0.07214611872 | C87: 0.08049360353 | D87: 0.05447546906 | E87: 0.03173788197 | F87: 0.01933125538
A88: hacienda y otros /ventas | B88: 0.03083069227 | C88: 0.03811520922 | D88: 0.02490488628 | E88: 0.01566972701 | F88: 0.01830361703
A89: Pasivo espontáneo / ventas | B89: =B87+B88 -> 0.102976811 | C89: =C87+C88 -> 0.1186088128 | D89: =D87+D88 -> 0.07938035534 | E89: =E87+E88 -> 0.04740760898 | F89: =F87+F88 -> 0.03763487242
A90: NOF / Ventas | B90: =B84+B85-B86-B89 -> 0.2677994447 | C90: =C84+C85-C86-C89 -> 0.2658496874 | D90: =D84+D85-D86-D89 -> 0.3737656565 | E90: =E84+E85-E86-E89 -> 0.5067100961 | F90: =F84+F85-F86-F89 -> 0.5289600235
A94: HIPÓTESIS EN NEGRITA
A95: BALANCE CALCULADO EN FUNCIÓN DEL AÑO QUE TERMINA NO DEL SIGUIENTE
A96: HIPÓTESIS CUENTA DE RDOS
A97: Crecimiento ventas | C97: 0.21 | D97: -0.01 | E97: 0.15 | F97: 0.1
A98: Material en % | B98: 0.542 | C98: 0.53 | D98: 0.603 | E98: 0.614 | F98: 0.6
A99: Mano de obra en % | B99: 0.174 | C99: 0.16 | D99: 0.214 | E99: 0.215 | F99: 0.213
A100: CMV en %
A102: Crecimiento Gastos generales | C102: 0.09836065574 | D102: 0.05223880597 | E102: -0.06382978723 | F102: 0.02272727273
A103: Intereses | B103: 0.052 | C103: 0.051 | D103: 0.063 | E103: 0.074 | F103: 0.078
A104: Amortización % del AF | B104: 0.1 | C104: =B104 -> 0.1 | D104: 0.1 | E104: 0.1 | F104: 0.1
A105: Amortización, fijo en $
A106: Impuestos | B106: 0.25 | C106: 0.25 | D106: 0.25 | E106: 0.25 | F106: 0.25
A108: HIPÓTESIS DE BALANCE
A109: Caja mínima | B109: 0 | C109: 0 | D109: 0
A110: Clientes días | B110: 96 | C110: 98.77530864 | D110: 111.7458037 | E110: 149.9746313 | F110: 152.4132432
A111: Existencias días | B111: 150.6765068 | C111: 155 | D111: 165 | E111: 175 | F111: 162
A112: AF nueva inversión | C112: 1600 | D112: 1600 | E112: 1600
A113: Proveedores días | B113: 69.1521631 | C113: 71.20501478 | D113: 70.71764358 | E113: 82.18023501 | F113: 71.50081806
A114: Anticipo clientes /ventas
A115: Otros acreedores / ventas
A116: Incr. Deuda largo | C116: -150 | D116: -150 | E116: -150 | F116: -150
A117: Payout | B117: 0 | C117: 0 | D117: 0 | E117: 0 | F117: 0
A118: Dividendos pagados | B118: 0 | C118: 1200 | D118: 0 | E118: 0 | F118: 0
H121: COAF
A122: Balance resumido | B122: 2006 | C122: 2007 | D122: 2008 | E122: 2009 | F122: 2010 | H122: 2007-10
A123: Caja excedente | B123: =B59/1000 -> 0.69 | C123: 0.63 | D123: 0.36 | E123: 0.18 | F123: 0.12 | H123: =F123-C123 -> -0.51
A124: NOF o circulante neto | B124: 8.797211759 | C124: 10.5671263 | D124: 14.70805795 | E124: 22.93049008 | F124: 26.33111898 | H124: =F124-C124 -> 15.76399268
A125: AF o activo fijo neto | B125: 15.3 | C125: 16.29 | D125: 16.53 | E125: 15.57 | F125: 15.06 | H125: =F125-C125 -> -1.23
A126: AN o activo neto | B126: =B123+B124+B125 -> 24.78721176 | C126: =C123+C124+C125 -> 27.4871263 | D126: =D123+D124+D125 -> 31.59805795 | E126: =E123+E124+E125 -> 38.68049008 | F126: =F123+F124+F125 -> 41.51111898
A128: Deuda (a largo y corto) | B128: =B64/1000 -> 6.18521384 | C128: =C64/1000 -> 5.252926573 | D128: 8.822935101 | E128: 14.33131223 | F128: 15.28192418 | H128: =F128-C128 -> 10.02899761
A129: Patrimonio neto (Equity) | B129: =B65/1000 -> 18.60199792 | C129: 22.23419973 | D129: 22.77512285 | E129: 24.34917785 | F129: 26.2291948 | H129: =F129-C129 -> 3.994995072
A130: Deuda + Equity | B130: =B128+B129 -> 24.78721176 | C130: =C128+C129 -> 27.4871263 | D130: =D128+D129 -> 31.59805795 | E130: =E128+E129 -> 38.68049008 | F130: =F128+F129 -> 41.51111898
H133: COAF
B134: 2006 | C134: 2007 | D134: 2008 | E134: 2009 | F134: 2010 | H134: 2007-10
A135: NOF | B135: =B124 -> 8.797211759 | C135: =C124 -> 10.5671263 | D135: =D124 -> 14.70805795 | E135: =E124 -> 22.93049008 | F135: =F124 -> 26.33111898 | H135: =F135-C135 -> 15.76399268
A136: FM | B136: =B70/1000 -> 5.251997919 | C136: =C70/1000 -> 7.744199727 | D136: =D70/1000 -> 7.895122853 | E136: =E70/1000 -> 10.27917785 | F136: =F70/1000 -> 12.5191948 | H136: =F136-C136 -> 4.774995072
A137: Crédito necesario (-) + | B137: =B136-B135 -> -3.54521384 | C137: =C136-C135 -> -2.822926573 | D137: =D136-D135 -> -6.812935101 | E137: =E136-E135 -> -12.65131223 | F137: =F136-F135 -> -13.81192418 | H137: =F137-C137 -> -10.98899761
A138: Caja excedente (+)

Sheet Anex 1-2 HACER (hidden)
E1: Anexo 1. Doniphon. Cuenta de PyG y Forecast
A2: Cuenta de PyG | D2: Datos pasados | I2: Forecast
A3: (miles de euros) | B3: 2018 | C3: 2019 | D3: =C3+1 -> 2020 | E3: =D3+1 -> 2021 | F3: =E3+1 -> 2022 | I3: =F3+1 -> 2023 | J3: =I3+1 -> 2024
A4: Ventas | B4: 32850 | C4: =B4*(1+C97) -> 39748.5 | D4: =C4*(1+D97) -> 39351.015 | E4: =D4*(1+E97) -> 45253.66725 | F4: =E4*(1+F97) -> 49779.03398
A5: Coste de materiales | B5: =B4*B98 -> 17804.7 | C5: =C4*C98 -> 21066.705 | D5: =D4*D98 -> 23728.66204 | E5: =E4*E98 -> 27785.75169 | F5: =F4*F98 -> 29867.42039 | I5: ------- | J5: -------
A6: Mano de obra | B6: =B4*B99 -> 5715.9 | C6: =C4*C99 -> 6359.76 | D6: =D4*D99 -> 8421.11721 | E6: =E4*E99 -> 9729.538459 | F6: =F4*F99 -> 10602.93424 | I6: ------- | J6: -------
A7: Total CMV | B7: =B5+B6 -> 23520.6 | C7: =C5+C6 -> 27426.465 | D7: =D5+D6 -> 32149.77925 | E7: =E5+E6 -> 37515.29015 | F7: =F5+F6 -> 40470.35462 | I7: ------- | J7: -------
A8: Margen bruto | B8: =B4-B7 -> 9329.4 | C8: =C4-C7 -> 12322.035 | D8: =D4-D7 -> 7201.235745 | E8: =E4-E7 -> 7738.3771 | F8: =F4-F7 -> 9308.679353 | I8: =I4*I21 -> 0 | J8: =J4*J21 -> 0
A9: Gastos generales (Opex) | B9: 3660 | C9: 4020 | D9: 4230 | E9: 3960 | F9: 4050
A10: EBITDA | B10: =B8-B9 -> 5669.4 | C10: =C8-C9 -> 8302.035 | D10: =D8-D9 -> 2971.235745 | E10: =E8-E9 -> 3778.3771 | F10: =F8-F9 -> 5258.679353 | I10: =I8-I9 -> 0 | J10: 0
A11: Amortización | B11: 1591.2 | C11: 1591.2 | D11: 1694.16 | E11: 1719.12 | F11: 1560 | I11: 1500 | J11: 1500
A12: EBIT o BAIT | B12: =B10-B11 -> 4078.2 | C12: =C10-C11 -> 6710.835 | D12: =D10-D11 -> 1277.075745 | E12: =E10-E11 -> 2059.2571 | F12: =F10-F11 -> 3698.679353 | I12: =I10-I11 -> -1500 | J12: -1500
A13: Resultados extraordinarios | B13: 0 | C13: 0 | D13: 0 | E13: 1100 | F13: 0 | I13: 0 | J13: 0
A14: Gastos financieros | B14: =B103*(B48+B46) -> 321.6311197 | C14: =C103*(C48+C46) -> 91.8 | D14: =D103*(D48+D46) -> 103.95 | E14: =E103*(E48+E46) -> 111 | F14: =F103*(F48+F46) -> 105.3
A15: Bº antes impuestos | B15: =B12+B13-B14 -> 3756.56888 | C15: =C12+C13-C14 -> 6619.035 | D15: =D12+D13-D14 -> 1173.125745 | E15: =E12+E13-E14 -> 3048.2571 | F15: =F12+F13-F14 -> 3593.379353 | I15: =I12+I13-I14 -> -1500 | J15: =J12+J13-J14 -> -1500
A16: Impuestos (25%) | B16: =B15*B106 -> 939.1422201 | C16: =C15*C106 -> 1654.75875 | D16: =D15*D106 -> 293.2814363 | E16: =E15*E106 -> 762.0642749 | F16: =F15*F106 -> 898.3448383
A17: Beneficio neto, BN | B17: =B15-B16 -> 2817.42666 | C17: =C15-C16 -> 4964.27625 | D17: =D15-D16 -> 879.8443088 | E17: =E15-E16 -> 2286.192825 | F17: =F15-F16 -> 2695.034515 | I17: =I15-I16 -> -1500 | J17: =J15-J16 -> -1500
A19: Ratios de cuenta de resultados | I19: Hipótesis de PyG
A20: Crecimiento de ventas | B20: 0.41 | C20: =C97 -> 0.21 | I20: 0 | J20: 0
A21: Margen bruto / Ventas | B21: =B8/B4 -> 0.284 | I21: 0.2 | J21: 0.21
A22: Opex / Ventas | B22: =B9/B4 -> 0.1114155251
A23: Aumento de Opex | B23: na | I23: 0.05 | J23: 0.05
A24: EBITDA / Ventas | B24: =B10/B4 -> 0.1725844749
A25: ROS (Bº neto / Ventas) | B25: =B17/B4 -> 0.08576641279
A26: ROE (Bº neto / Equity) | B26: =B17/B49 -> 0.1784924414
A27: RONA (EBIT / Activo neto) | B27: =B12/B62 -> 0.1645283883
A28: Coste deuda | B28: =B103 -> 0.052 | I28: 0.07 | J28: 0.07
A29: EBIT / Gastos financieros | B29: =B12/B14 -> 12.67974319
E31: Anexo 2. Doniphon. Balances y Forecast
A33: Activo | H33: Diferencias
A34: (miles de euros) | B34: =B3 -> 2018 | C34: =C3 -> 2019 | D34: =D3 -> 2020 | E34: =E3 -> 2021 | F34: =F3 -> 2022 | H34: 2019-22
A35: Caja | B35: 690 | C35: 630 | D35: 360 | E35: 180 | F35: 120
A36: Clientes | B36: =B4/365*B110 -> 8640 | C36: 10756.63111 | D36: 12047.42684 | E36: 18594.25222 | F36: 20786.25756
A37: Existencias | B37: 7350 | C37: 8946.135 | D37: 10726.65544 | E37: 13321.93574 | F37: 13256.22494
A38: Activo corriente, AC | B38: =SUM(B35:B37) -> 16680 | C38: =SUM(C35:C37) -> 20332.76611 | D38: =SUM(D35:D37) -> 23134.08229 | E38: =SUM(E35:E37) -> 32096.18796 | F38: =SUM(F35:F37) -> 34162.4825
A39: Activo fijo neto, AF | B39: 15300 | C39: 16290 | D39: 16530 | E39: 15570 | F39: 15060
A40: Activo total | B40: =B38+B39 -> 31980 | C40: =C38+C39 -> 36622.76611 | D40: =D38+D39 -> 39664.08229 | E40: =E38+E39 -> 47666.18796 | F40: =F38+F39 -> 49222.4825
A42: Pasivo
A43: Proveedores | B43: =B54/365*B113 -> 3810 | C43: =C54/365*C113 -> 4421.117417 | D43: =D54/365*D113 -> 0 | E43: =E54/365*E113 -> 0 | F43: =F54/365*F113 -> 0
A44: Anticipos de clientes | B44: 2370 | C44: 3199.5 | D44: 2143.665 | E44: 1436.25555 | F44: 962.2912185
A45: Hacienda y otros acreedores | B45: 1012.788241 | C45: 1515.022394 | D45: 980.0325537 | E45: 709.1126118 | F45: 911.1363741
A46: Crédito bancario | B46: =IF(B71<0,(-B71+B35),0) -> 4235.21384 | C46: =IF(C71<0,(-C71+C35),0) -> 0 | D46: =IF(D71<0,(-D71+D35),0) -> 0 | E46: =IF(E71<0,(-E71+E35),0) -> 0 | F46: =IF(F71<0,(-F71+F35),0) -> 0
A47: Pasivo corriente | B47: =B43+B44+B45+B46 -> 11428.00208 | C47: =C43+C44+C45+C46 -> 9135.639811 | D47: =D43+D44+D45+D46 -> 3123.697554 | E47: =E43+E44+E45+E46 -> 2145.368162 | F47: =F43+F44+F45+F46 -> 1873.427593
A48: Préstamo bancario | B48: 1950 | C48: =B48+C116 -> 1800 | D48: =C48+D116 -> 1650 | E48: =D48+E116 -> 1500 | F48: =E48+F116 -> 1350
A49: Capital y reservas | B49: 15784.57126 | C49: =B49+B50-C118 -> 17401.99792 | D49: =C49+C50 -> 22366.27417 | E49: =D49+D50 -> 23246.11848 | F49: =E49+E50 -> 25532.3113
A50: Beneficio del año | B50: =B17 -> 2817.42666 | C50: =C17 -> 4964.27625 | D50: =D17 -> 879.8443088 | E50: =E17 -> 2286.192825 | F50: =F17 -> 2695.034515
A51: Patrimonio neto | B51: =B49+B50 -> 18601.99792 | C51: =C49+C50 -> 22366.27417 | D51: =D49+D50 -> 23246.11848 | E51: =E49+E50 -> 25532.3113 | F51: =F49+F50 -> 28227.34582
A52: Total pasivo y Patrimonio | B52: =B47+B48+B51 -> 31980 | C52: =C47+C48+C51 -> 33301.91398 | D52: =D47+D48+D51 -> 28019.81603 | E52: =E47+E48+E51 -> 29177.67946 | F52: =F47+F48+F51 -> 31450.77341
A54: Pro memoria: Compras | B54: 20110 | C54: =C5+(C37-B37) -> 22662.84
A55: Pro memoria: Dividendos | C55: =B49+B50-C49 -> 1200
A56: Capex
H57: =H33 -> Diferencias | I57: Forecast
A58: Balance corto | B58: =B3 -> 2018 | C58: =C3 -> 2019 | D58: =D3 -> 2020 | E58: =E3 -> 2021 | F58: =F3 -> 2022 | H58: =H34 -> 2019-22 | I58: =F58+1 -> 2023 | J58: =I58+1 -> 2024
A59: Caja excedente | B59: =B35-B109 -> 690 | C59: =C35-C109 -> 630 | D59: =D35-D109 -> 360 | E59: =E35-E109 -> 180 | F59: =F35-F109 -> 120 | H59: =F59-C59 -> -510 | I59: 0 | J59: 0
A60: NOF o circulante neto | B60: =B109+B36+B37-B43-B44-B45 -> 8797.211759
A61: AF o activo fijo neto | B61: =B39 -> 15300 | C61: =C39 -> 16290 | D61: =D39 -> 16530 | E61: =E39 -> 15570 | F61: =F39 -> 15060 | H61: =F61-C61 -> -1230 | I61: =F61 -> 15060 | J61: =I61 -> 15060
A62: AN o activo neto | B62: =B59+B60+B61 -> 24787.21176 | C62: =C59+C60+C61 -> 16920 | D62: =D59+D60+D61 -> 16890 | E62: =E59+E60+E61 -> 15750 | F62: =F59+F60+F61 -> 15180 | I62: =I59+I60+I61 -> 15060 | J62: 15060
A64: Deuda (a largo y corto) | B64: =B46+B48 -> 6185.21384
A65: Patrimonio neto (Equity) | B65: =B51 -> 18601.99792
A66: Deuda + Equity | B66: =B64+B65 -> 24787.21176
A68: Extracto del balance, NOF vs FM
A69: NOF | B69: =B60 -> 8797.211759
A70: FM | B70: =B48+B51-B39 -> 5251.997919
A71: Crédito necesario (-) o | B71: =B70-B69 -> -3545.21384
A72: Caja excedente (+)
A74: Ratios de balance | H74: En% Vtas | I74: Hipótesis de Balance
A75: Días de cobro | B75: =B36/B4*365 -> 96 | I75: ----- | J75: ----- | L75: 120 | M75: =L75/365 -> 0.3287671233
A76: Días de existencias | B76: 150.6765068 | I76: ----- | J76: -----
A77: Días de pago | B77: =B43/B54*365 -> 69.1521631 | I77: ----- | J77: -----
A78: NOF / Ventas en % | B78: =B69/B4 -> 0.2677994447 | I78: 0.42 | J78: 0.4
A79: Deuda / EBITDA | B79: =B64/B10 -> 1.090982086
A80: Deuda / Bº Neto | B80: =B64/B17 -> 2.19534156
J81: © E.M. Abascal 2023
A84: Clientes / Ventas | B84: =B36/B$4 -> 0.2630136986 | C84: 0.270617284 | D84: 0.3061528869 | E84: 0.4108894008 | F84: 0.4175705293
A85: Existencias / Ventas | B85: 0.2237442922 | C85: 0.2250684932 | D85: 0.2725890411 | E85: 0.2943835616 | F85: 0.2663013699
A86: Proveedores / ventas | B86: =B43/B4 -> 0.1159817352 | C86: =C43/C4 -> 0.1112272769 | D86: =D43/D4 -> 0 | E86: =E43/E4 -> 0 | F86: =F43/F4 -> 0
A87: anticipos clientes /ventas | B87: =B44/B$4 -> 0.07214611872 | C87: 0.08049360353 | D87: 0.05447546906 | E87: 0.03173788197 | F87: 0.01933125538
A88: hacienda y otros /ventas | B88: 0.03083069227 | C88: 0.03811520922 | D88: 0.02490488628 | E88: 0.01566972701 | F88: 0.01830361703
A89: Pasivo espontáneo / ventas | B89: =B87+B88 -> 0.102976811 | C89: =C87+C88 -> 0.1186088128 | D89: =D87+D88 -> 0.07938035534 | E89: =E87+E88 -> 0.04740760898 | F89: =F87+F88 -> 0.03763487242
A90: NOF / Ventas | B90: =B84+B85-B86-B89 -> 0.2677994447 | C90: =C84+C85-C86-C89 -> 0.2658496874 | D90: =D84+D85-D86-D89 -> 0.4993615726 | E90: =E84+E85-E86-E89 -> 0.6578653535 | F90: =F84+F85-F86-F89 -> 0.6462370267
A94: HIPÓTESIS EN NEGRITA
A95: BALANCE CALCULADO EN FUNCIÓN DEL AÑO QUE TERMINA NO DEL SIGUIENTE
A96: HIPÓTESIS CUENTA DE RDOS
A97: Crecimiento ventas | C97: 0.21 | D97: -0.01 | E97: 0.15 | F97: 0.1
A98: Material en % | B98: 0.542 | C98: 0.53 | D98: 0.603 | E98: 0.614 | F98: 0.6
A99: Mano de obra en % | B99: 0.174 | C99: 0.16 | D99: 0.214 | E99: 0.215 | F99: 0.213
A100: CMV en %
A102: Crecimiento Gastos generales | C102: 0.09836065574 | D102: 0.05223880597 | E102: -0.06382978723 | F102: 0.02272727273
A103: Intereses | B103: 0.052 | C103: 0.051 | D103: 0.063 | E103: 0.074 | F103: 0.078
A104: Amortización % del AF | B104: 0.1 | C104: =B104 -> 0.1 | D104: 0.1 | E104: 0.1 | F104: 0.1
A105: Amortización, fijo en $
A106: Impuestos | B106: 0.25 | C106: 0.25 | D106: 0.25 | E106: 0.25 | F106: 0.25
A108: HIPÓTESIS DE BALANCE
A109: Caja mínima | B109: 0 | C109: 0 | D109: 0
A110: Clientes días | B110: 96 | C110: 98.77530864 | D110: 111.7458037 | E110: 149.9746313 | F110: 152.4132432
A111: Existencias días | B111: 150.6765068 | C111: 155 | D111: 165 | E111: 175 | F111: 162
A112: AF nueva inversión | C112: 1600 | D112: 1600 | E112: 1600
A113: Proveedores días | B113: 69.1521631 | C113: 71.20501478 | D113: 70.71764358 | E113: 82.18023501 | F113: 71.50081806
A114: Anticipo clientes /ventas
A115: Otros acreedores / ventas
A116: Incr. Deuda largo | C116: -150 | D116: -150 | E116: -150 | F116: -150
A117: Payout | B117: 0 | C117: 0 | D117: 0 | E117: 0 | F117: 0
A118: Dividendos pagados | B118: 0 | C118: 1200 | D118: 0 | E118: 0 | F118: 0
H121: COAF
A122: Balance resumido | B122: 2006 | C122: 2007 | D122: 2008 | E122: 2009 | F122: 2010 | H122: 2007-10
A123: Caja excedente | B123: =B59/1000 -> 0.69 | C123: 0.63 | D123: 0.36 | E123: 0.18 | F123: 0.12 | H123: =F123-C123 -> -0.51
A124: NOF o circulante neto | B124: 8.797211759 | C124: 0 | D124: 0 | E124: 0 | F124: 0 | H124: =F124-C124 -> 0
A125: AF o activo fijo neto | B125: 15.3 | C125: 16.29 | D125: 16.53 | E125: 15.57 | F125: 15.06 | H125: =F125-C125 -> -1.23
A126: AN o activo neto | B126: =B123+B124+B125 -> 24.78721176 | C126: =C123+C124+C125 -> 16.92 | D126: =D123+D124+D125 -> 16.89 | E126: =E123+E124+E125 -> 15.75 | F126: =F123+F124+F125 -> 15.18
A128: Deuda (a largo y corto) | B128: =B64/1000 -> 6.18521384 | C128: =C64/1000 -> 0 | D128: 0 | E128: 0 | F128: 0 | H128: =F128-C128 -> 0
A129: Patrimonio neto (Equity) | B129: =B65/1000 -> 18.60199792 | C129: 0 | D129: 0 | E129: 0 | F129: 0 | H129: =F129-C129 -> 0
A130: Deuda + Equity | B130: =B128+B129 -> 24.78721176 | C130: =C128+C129 -> 0 | D130: =D128+D129 -> 0 | E130: =E128+E129 -> 0 | F130: =F128+F129 -> 0
H133: COAF
B134: 2006 | C134: 2007 | D134: 2008 | E134: 2009 | F134: 2010 | H134: 2007-10
A135: NOF | B135: =B124 -> 8.797211759 | C135: =C124 -> 0 | D135: =D124 -> 0 | E135: =E124 -> 0 | F135: =F124 -> 0 | H135: =F135-C135 -> 0
A136: FM | B136: =B70/1000 -> 5.251997919 | C136: =C70/1000 -> 0 | D136: =D70/1000 -> 0 | E136: =E70/1000 -> 0 | F136: =F70/1000 -> 0 | H136: =F136-C136 -> 0
A137: Crédito necesario (-) + | B137: =B136-B135 -> -3.54521384 | C137: =C136-C135 -> 0 | D137: =D136-D135 -> 0 | E137: =E136-E135 -> 0 | F137: =F136-F135 -> 0 | H137: =F137-C137 -> 0
A138: Caja excedente (+)

Sheet Anex 1-2 PT (hidden)
E1: Anexo 1. Doniphon. DRE e previsão
A2: DRE | D2: Dados históricos | I2: Previsão
A3: (milhares de euros) | B3: 2018 | C3: 2019 | D3: =C3+1 -> 2020 | E3: =D3+1 -> 2021 | F3: =E3+1 -> 2022 | I3: =F3+1 -> 2023 | J3: =I3+1 -> 2024
A4: Vendas | B4: 32850 | C4: =B4*(1+C97) -> 39748.5 | D4: =C4*(1+D97) -> 39351.015 | E4: =D4*(1+E97) -> 45253.66725 | F4: =E4*(1+F97) -> 49779.03398 | I4: =F4*(1+I20) -> 49779.03398 | J4: =I4*(1+J20) -> 49779.03398
A5: Custo de materiais | B5: =B4*B98 -> 17804.7 | C5: =C4*C98 -> 21066.705 | D5: =D4*D98 -> 23728.66204 | E5: =E4*E98 -> 27785.75169 | F5: =F4*F98 -> 29867.42039 | I5: ------- | J5: -------
A6: Mão de obra | B6: =B4*B99 -> 5715.9 | C6: =C4*C99 -> 6359.76 | D6: =D4*D99 -> 8421.11721 | E6: =E4*E99 -> 9729.538459 | F6: =F4*F99 -> 10602.93424 | I6: ------- | J6: -------
A7: Total CMV | B7: =B5+B6 -> 23520.6 | C7: =C5+C6 -> 27426.465 | D7: =D5+D6 -> 32149.77925 | E7: =E5+E6 -> 37515.29015 | F7: =F5+F6 -> 40470.35462 | I7: ------- | J7: -------
A8: Margem bruta | B8: =B4-B7 -> 9329.4 | C8: =C4-C7 -> 12322.035 | D8: =D4-D7 -> 7201.235745 | E8: =E4-E7 -> 7738.3771 | F8: =F4-F7 -> 9308.679353 | I8: =I4*I21 -> 9955.806795 | J8: =J4*J21 -> 10453.59713
A9: Despesas gerais (Opex) | B9: 3660 | C9: 4020 | D9: 4230 | E9: 3960 | F9: 4050 | I9: =F9*(1+I23) -> 4252.5 | J9: =I9*(1+J23) -> 4465.125
A10: EBITDA | B10: =B8-B9 -> 5669.4 | C10: =C8-C9 -> 8302.035 | D10: =D8-D9 -> 2971.235745 | E10: =E8-E9 -> 3778.3771 | F10: =F8-F9 -> 5258.679353 | I10: =I8-I9 -> 5703.306795 | J10: =J8-J9 -> 5988.472135
A11: Amortização | B11: 1591.2 | C11: 1591.2 | D11: 1694.16 | E11: 1719.12 | F11: 1560 | I11: 1500 | J11: 1500
A12: EBIT ou LAJIR | B12: =B10-B11 -> 4078.2 | C12: =C10-C11 -> 6710.835 | D12: =D10-D11 -> 1277.075745 | E12: =E10-E11 -> 2059.2571 | F12: =F10-F11 -> 3698.679353 | I12: =I10-I11 -> 4203.306795 | J12: =J10-J11 -> 4488.472135
A13: Resultados extraordinários | B13: 0 | C13: 0 | D13: 0 | E13: 1100 | F13: 0 | I13: 0 | J13: 0
A14: Despesas financeiras | B14: =B103*(B48+B46) -> 321.6311197 | C14: =C103*(C48+C46) -> 267.8992552 | D14: =D103*(D48+D46) -> 555.8449114 | E14: =E103*(E48+E46) -> 1060.517105 | F14: =F103*(F48+F46) -> 1191.990086 | I14: =I28*F64 -> 1069.734693 | J14: =J28*I64 -> 517.1474276
A15: Lucro antes de impostos | B15: =B12+B13-B14 -> 3756.56888 | C15: =C12+C13-C14 -> 6442.935745 | D15: =D12+D13-D14 -> 721.2308336 | E15: =E12+E13-E14 -> 2098.739995 | F15: =F12+F13-F14 -> 2506.689267 | I15: =I12+I13-I14 -> 3133.572102 | J15: =J12+J13-J14 -> 3971.324707
A16: Impostos (25%) | B16: =B15*B106 -> 939.1422201 | C16: =C15*C106 -> 1610.733936 | D16: =D15*D106 -> 180.3077084 | E16: =E15*E106 -> 524.6849987 | F16: =F15*F106 -> 626.6723168 | I16: =0.25*I15 -> 783.3930256 | J16: =0.25*J15 -> 992.8311768
A17: Lucro líquido, LL | B17: =B15-B16 -> 2817.42666 | C17: =C15-C16 -> 4832.201809 | D17: =D15-D16 -> 540.9231252 | E17: =E15-E16 -> 1574.054996 | F17: =F15-F16 -> 1880.01695 | I17: =I15-I16 -> 2350.179077 | J17: =J15-J16 -> 2978.49353
A19: Índices de demonstração de resultados | I19: Hipóteses do DRE
A20: Crescimento das vendas | B20: 0.41 | C20: =C97 -> 0.21 | D20: =D4/C4-1 -> -0.01 | E20: =E4/D4-1 -> 0.15 | F20: =F4/E4-1 -> 0.1 | I20: 0 | J20: 0
A21: Margem bruta / Vendas | B21: =B8/B4 -> 0.284 | C21: =C8/C4 -> 0.31 | D21: =D8/D4 -> 0.183 | E21: =E8/E4 -> 0.171 | F21: =F8/F4 -> 0.187 | I21: 0.2 | J21: 0.21
A22: Opex / Vendas | B22: =B9/B4 -> 0.1114155251 | C22: =C9/C4 -> 0.1011358919 | D22: =D9/D4 -> 0.1074940507 | E22: =E9/E4 -> 0.08750672024 | F22: =F9/F4 -> 0.08135955394 | I22: =I9/I4 -> 0.08542753164 | J22: =J9/J4 -> 0.08969890822
A23: Aumento de Opex | B23: na | C23: =C9/B9-1 -> 0.09836065574 | D23: =D9/C9-1 -> 0.05223880597 | E23: =E9/D9-1 -> -0.06382978723 | F23: =F9/E9-1 -> 0.02272727273 | I23: 0.05 | J23: 0.05
A24: EBITDA / Vendas | B24: =B10/B4 -> 0.1725844749 | C24: =C10/C4 -> 0.2088641081 | D24: =D10/D4 -> 0.07550594934 | E24: =E10/E4 -> 0.08349327976 | F24: =F10/F4 -> 0.1056404461 | I24: =I10/I4 -> 0.1145724684 | J24: =J10/J4 -> 0.1203010918
A25: ROS (Lucro líquido / Vendas) | B25: =B17/B4 -> 0.08576641279 | C25: =C17/C4 -> 0.1215694129 | D25: =D17/D4 -> 0.0137461035 | E25: =E17/E4 -> 0.03478292681 | F25: =F17/F4 -> 0.03776724457 | I25: =I17/I4 -> 0.0472122275 | J25: =J17/J4 -> 0.05983429755
A26: ROE (Lucro líquido / Patrimônio) | B26: =B17/B49 -> 0.1784924414 | C26: =C17/C49 -> 0.2776808635 | D26: =D17/D49 -> 0.02432842791 | E26: =E17/E49 -> 0.06911290912 | F26: =F17/F49 -> 0.07721069525 | I26: =I17/F65 -> 0.08960164789 | J26: =J17/I65 -> 0.104218292
A27: RONA (EBIT / Ativo líquido) | B27: =B12/B62 -> 0.1645283883 | C27: =C12/C62 -> 0.2441446562 | D27: =D12/D62 -> 0.04041627327 | E27: =E12/E62 -> 0.05323761657 | F27: =F12/F62 -> 0.08910093113 | I27: =I12/I62 -> 0.1168650177 | J27: =J12/J62 -> 0.1283461549
A28: Custo da dívida | B28: =B103 -> 0.052 | C28: =C103 -> 0.051 | D28: =D103 -> 0.063 | E28: =E103 -> 0.074 | F28: =F103 -> 0.078 | I28: 0.07 | J28: 0.07
A29: EBIT / Despesas financeiras | B29: =B12/B14 -> 12.67974319 | C29: =C12/C14 -> 25.04984568 | D29: =D12/D14 -> 2.297539689 | E29: =E12/E14 -> 1.941748124 | F29: =F12/F14 -> 3.102944728 | I29: =I12/I14 -> 3.92929838 | J29: =J12/J14 -> 8.6792893
E31: Anexo 2. Doniphon. Balanços e Previsão
A33: Ativo | H33: Diferenças
A34: (milhares de euros) | B34: =B3 -> 2018 | C34: =C3 -> 2019 | D34: =D3 -> 2020 | E34: =E3 -> 2021 | F34: =F3 -> 2022 | H34: 2019-22
A35: Caixa | B35: 690 | C35: 630 | D35: 360 | E35: 180 | F35: 120 | H35: =F35-C35 -> -510
A36: Clientes | B36: =B4/365*B110 -> 8640 | C36: 10756.63111 | D36: 12047.42684 | E36: 18594.25222 | F36: 20786.25756 | H36: =F36-C36 -> 10029.62645
A37: Estoque | B37: 7350 | C37: 8946.135 | D37: 10726.65544 | E37: 13321.93574 | F37: 13256.22494 | H37: =F37-C37 -> 4310.089938
A38: Ativo circulante, AC | B38: =SUM(B35:B37) -> 16680 | C38: =SUM(C35:C37) -> 20332.76611 | D38: =SUM(D35:D37) -> 23134.08229 | E38: =SUM(E35:E37) -> 32096.18796 | F38: =SUM(F35:F37) -> 34162.4825
A39: Ativo fixo líquido, AF | B39: 15300 | C39: 16290 | D39: 16530 | E39: 15570 | F39: 15060 | H39: =F39-C39 -> -1230
A40: Ativo total | B40: =B38+B39 -> 31980 | C40: =C38+C39 -> 36622.76611 | D40: =D38+D39 -> 39664.08229 | E40: =E38+E39 -> 47666.18796 | F40: =F38+F39 -> 49222.4825
A42: Passivo
A43: Fornecedores | B43: =B54/365*B113 -> 3810 | C43: =C54/365*C113 -> 4421.117417 | D43: =D54/365*D113 -> 4942.326782 | E43: =E54/365*E113 -> 6840.329723 | F43: =F54/365*F113 -> 5837.935931 | H43: =F43-C43 -> 1416.818514
A44: Adiantamentos de clientes | B44: 2370 | C44: 3199.5 | D44: 2143.665 | E44: 1436.25555 | F44: 962.2912185 | H44: =F44-C44 -> -2237.208781
A45: Impostos diferidos e outros credores | B45: 1012.788241 | C45: 1515.022394 | D45: 980.0325537 | E45: 709.1126118 | F45: 911.1363741 | H45: =F45-C45 -> -603.8860197
A46: Crédito bancário | B46: =IF(B71<0,(-B71+B35),0) -> 4235.21384 | C46: =IF(C71<0,(-C71+C35),0) -> 3452.926573 | D46: =IF(D71<0,(-D71+D35),0) -> 7172.935101 | E46: =IF(E71<0,(-E71+E35),0) -> 12831.31223 | F46: =IF(F71<0,(-F71+F35),0) -> 13931.92418 | H46: =F46-C46 -> 10478.99761
A47: Passivo circulante | B47: =B43+B44+B45+B46 -> 11428.00208 | C47: =C43+C44+C45+C46 -> 12588.56638 | D47: =D43+D44+D45+D46 -> 15238.95944 | E47: =E43+E44+E45+E46 -> 21817.01012 | F47: =F43+F44+F45+F46 -> 21643.2877
A48: Empréstimo bancário | B48: 1950 | C48: =B48+C116 -> 1800 | D48: =C48+D116 -> 1650 | E48: =D48+E116 -> 1500 | F48: =E48+F116 -> 1350 | H48: =F48-C48 -> -450
A49: Capital e reservas | B49: 15784.57126 | C49: =B49+B50-C118 -> 17401.99792 | D49: =C49+C50 -> 22234.19973 | E49: =D49+D50 -> 22775.12285 | F49: =E49+E50 -> 24349.17785
A50: Lucro do ano | B50: =B17 -> 2817.42666 | C50: =C17 -> 4832.201809 | D50: =D17 -> 540.9231252 | E50: =E17 -> 1574.054996 | F50: =F17 -> 1880.01695
A51: Patrimônio líquido | B51: =B49+B50 -> 18601.99792 | C51: =C49+C50 -> 22234.19973 | D51: =D49+D50 -> 22775.12285 | E51: =E49+E50 -> 24349.17785 | F51: =F49+F50 -> 26229.1948 | H51: =F51-C51 -> 3994.995072
A52: Total passivo e Patrimônio | B52: =B47+B48+B51 -> 31980 | C52: =C47+C48+C51 -> 36622.76611 | D52: =D47+D48+D51 -> 39664.08229 | E52: =E47+E48+E51 -> 47666.18796 | F52: =F47+F48+F51 -> 49222.4825
A54: Pro memória: Compras | B54: 20110 | C54: =C5+(C37-B37) -> 22662.84 | D54: =D5+(D37-C37) -> 25509.18249 | E54: =E5+(E37-D37) -> 30381.03199 | F54: =F5+(F37-E37) -> 29801.70958
A55: Pro memória: Dividendos | C55: =B49+B50-C49 -> 1200 | D55: =C49+C50-D49 -> 0 | E55: =D49+D50-E49 -> 0 | F55: =E49+E50-F49 -> 0
A56: Capex | D56: =D39-C39+D11 -> 1934.16 | E56: =E39-D39+E11 -> 759.12 | F56: =F39-E39+F11 -> 1050
H57: =H33 -> Diferenças | I57: =I2 -> Previsão
A58: Balanço curto | B58: =B3 -> 2018 | C58: =C3 -> 2019 | D58: =D3 -> 2020 | E58: =E3 -> 2021 | F58: =F3 -> 2022 | H58: =H34 -> 2019-22 | I58: =F58+1 -> 2023 | J58: =I58+1 -> 2024
A59: Excedente de caixa | B59: =B35-B109 -> 690 | C59: =C35-C109 -> 630 | D59: =D35-D109 -> 360 | E59: =E35-E109 -> 180 | F59: =F35-F109 -> 120 | H59: =F59-C59 -> -510 | I59: 0 | J59: 0
A60: NOF ou circulante líquido | B60: =B109+B36+B37-B43-B44-B45 -> 8797.211759 | C60: =C109+C36+C37-C43-C44-C45 -> 10567.1263 | D60: =D109+D36+D37-D43-D44-D45 -> 14708.05795 | E60: =E109+E36+E37-E43-E44-E45 -> 22930.49008 | F60: =F109+F36+F37-F43-F44-F45 -> 26331.11898 | H60: =F60-C60 -> 15763.99268 | I60: =I4*I78 -> 20907.19427 | J60: =J4*J78 -> 19911.61359
A61: AF ou ativo fixo líquido | B61: =B39 -> 15300 | C61: =C39 -> 16290 | D61: =D39 -> 16530 | E61: =E39 -> 15570 | F61: =F39 -> 15060 | H61: =F61-C61 -> -1230 | I61: =F61 -> 15060 | J61: =I61 -> 15060
A62: AN ou ativo líquido | B62: =B59+B60+B61 -> 24787.21176 | C62: =C59+C60+C61 -> 27487.1263 | D62: =D59+D60+D61 -> 31598.05795 | E62: =E59+E60+E61 -> 38680.49008 | F62: =F59+F60+F61 -> 41511.11898 | I62: =I59+I60+I61 -> 35967.19427 | J62: =J59+J60+J61 -> 34971.61359
A64: Dívida (curto e longo prazo) | B64: =B46+B48 -> 6185.21384 | C64: =C46+C48 -> 5252.926573 | D64: =D46+D48 -> 8822.935101 | E64: =E46+E48 -> 14331.31223 | F64: =F46+F48 -> 15281.92418 | H64: =F64-C64 -> 10028.99761 | I64: =I62-I65 -> 7387.820394 | J64: =J62-J65 -> 3413.746184
A65: Patrimônio líquido (Equity) | B65: =B51 -> 18601.99792 | C65: =C51 -> 22234.19973 | D65: =D51 -> 22775.12285 | E65: =E51 -> 24349.17785 | F65: =F51 -> 26229.1948 | H65: =F65-C65 -> 3994.995072 | I65: =F65+I17 -> 28579.37388 | J65: =I65+J17 -> 31557.86741
A66: Dívida + Equity | B66: =B64+B65 -> 24787.21176 | C66: =C64+C65 -> 27487.1263 | D66: =D64+D65 -> 31598.05795 | E66: =E64+E65 -> 38680.49008 | F66: =F64+F65 -> 41511.11898 | I66: =I64+I65 -> 35967.19427 | J66: =J64+J65 -> 34971.61359
A68: Extrato do balanço, NOF vs CG
A69: NOF | B69: =B60 -> 8797.211759 | C69: =C60 -> 10567.1263 | D69: =D60 -> 14708.05795 | E69: =E60 -> 22930.49008 | F69: =F60 -> 26331.11898 | H69: =F69-C69 -> 15763.99268
A70: CG | B70: =B48+B51-B39 -> 5251.997919 | C70: =C48+C51-C39 -> 7744.199727 | D70: =D48+D51-D39 -> 7895.122853 | E70: =E48+E51-E39 -> 10279.17785 | F70: =F48+F51-F39 -> 12519.1948 | H70: =F70-C70 -> 4774.995072
A71: Crédito necessário (-) ou | B71: =B70-B69 -> -3545.21384 | C71: =C70-C69 -> -2822.926573 | D71: =D70-D69 -> -6812.935101 | E71: =E70-E69 -> -12651.31223 | F71: =F70-F69 -> -13811.92418 | H71: =F71-C71 -> -10988.99761
A72: Excedente de caixa (+)
A74: Índices de balanço | H74: % Vendas | I74: Hipóteses do Balanço
A75: Dias de cobrança | B75: =B36/B4*365 -> 96 | C75: 98.77530864 | D75: 111.7458037 | E75: 149.9746313 | F75: 152.4132432 | H75: =F36/F4 -> 0.4175705293 | I75: ----- | J75: ----- | L75: 120 | M75: =L75/365 -> 0.3287671233
A76: Dias de estoque | B76: 150.6765068 | C76: 155 | D76: 165 | E76: 175 | F76: 162 | H76: =F37/F4 -> 0.2663013699 | I76: ----- | J76: -----
A77: Dias de pagamento | B77: =B43/B54*365 -> 69.1521631 | C77: =C43/C54*365 -> 71.20501478 | D77: =D43/D54*365 -> 70.71764358 | E77: =E43/E54*365 -> 82.18023501 | F77: =F43/F54*365 -> 71.50081806 | H77: =(F43+F44+F45)/F4 -> 0.1549118757 | I77: ----- | J77: -----
A78: NOF / Vendas em % | B78: =B69/B4 -> 0.2677994447 | C78: =C69/C4 -> 0.2658496874 | D78: =D69/D4 -> 0.3737656565 | E78: =E69/E4 -> 0.5067100961 | F78: =F69/F4 -> 0.5289600235 | H78: =H75+H76-H77 -> 0.5289600235 | I78: 0.42 | J78: 0.4
A79: Dívida / EBITDA | B79: =B64/B10 -> 1.090982086 | C79: =C64/C10 -> 0.632727587 | D79: =D64/D10 -> 2.969449703 | E79: =E64/E10 -> 3.792980916 | F79: =F64/F10 -> 2.906038409
A80: Dívida / Lucro líquido | B80: =B64/B17 -> 2.19534156 | C80: =C64/C17 -> 1.087066886 | D80: =D64/D17 -> 16.31088539 | E80: =E64/E17 -> 9.10470871 | F80: =F64/F17 -> 8.128609786
J81: © E.M. Abascal 2023
A84: Clientes / Vendas | B84: =B36/B$4 -> 0.2630136986 | C84: 0.270617284 | D84: 0.3061528869 | E84: 0.4108894008 | F84: 0.4175705293
A85: Estoques / Vendas | B85: 0.2237442922 | C85: 0.2250684932 | D85: 0.2725890411 | E85: 0.2943835616 | F85: 0.2663013699
A86: Fornecedores / vendas | B86: =B43/B4 -> 0.1159817352 | C86: =C43/C4 -> 0.1112272769 | D86: =D43/D4 -> 0.1255959162 | E86: =E43/E4 -> 0.1511552574 | F86: =F43/F4 -> 0.1172770033
A87: Adiantamento Clientes / vendas | B87: =B44/B$4 -> 0.07214611872 | C87: 0.08049360353 | D87: 0.05447546906 | E87: 0.03173788197 | F87: 0.01933125538
A88: Impostos diferidos e outros /vendas | B88: 0.03083069227 | C88: 0.03811520922 | D88: 0.02490488628 | E88: 0.01566972701 | F88: 0.01830361703
A89: Passivo espontâneo / vendas | B89: =B87+B88 -> 0.102976811 | C89: =C87+C88 -> 0.1186088128 | D89: =D87+D88 -> 0.07938035534 | E89: =E87+E88 -> 0.04740760898 | F89: =F87+F88 -> 0.03763487242
A90: NOF / Vendas | B90: =B84+B85-B86-B89 -> 0.2677994447 | C90: =C84+C85-C86-C89 -> 0.2658496874 | D90: =D84+D85-D86-D89 -> 0.3737656565 | E90: =E84+E85-E86-E89 -> 0.5067100961 | F90: =F84+F85-F86-F89 -> 0.5289600235
A94: HIPÓTESES EM NEGRITO
A95: BALANÇO CALCULADO COM BASE NO ANO QUE TERMINA, NÃO NO PRÓXIMO
A96: HIPÓTESES DRE
A97: Crescimento das vendas | C97: 0.21 | D97: -0.01 | E97: 0.15 | F97: 0.1
A98: Material em % | B98: 0.542 | C98: 0.53 | D98: 0.603 | E98: 0.614 | F98: 0.6
A99: Mão de obra em % | B99: 0.174 | C99: 0.16 | D99: 0.214 | E99: 0.215 | F99: 0.213
A100: CMV em %
A102: Crescimento de Despesas Gerais | C102: 0.09836065574 | D102: 0.05223880597 | E102: -0.06382978723 | F102: 0.02272727273
A103: Juros | B103: 0.052 | C103: 0.051 | D103: 0.063 | E103: 0.074 | F103: 0.078
A104: Depreciação % do AF | B104: 0.1 | C104: =B104 -> 0.1 | D104: =C104 -> 0.1 | E104: =D104 -> 0.1 | F104: =E104 -> 0.1
A105: Depreciação, fixo em $
A106: Impostos | B106: 0.25 | C106: =B106 -> 0.25 | D106: =C106 -> 0.25 | E106: =D106 -> 0.25 | F106: =E106 -> 0.25
A108: HIPÓTESES DE BALANÇO
A109: Caixa mínima | B109: 0 | C109: 0 | D109: 0
A110: Clientes em dias | B110: 96 | C110: 98.77530864 | D110: 111.7458037 | E110: 149.9746313 | F110: 152.4132432
A111: Estoque em dias | B111: 150.6765068 | C111: 155 | D111: 165 | E111: 175 | F111: 162
A112: Novo investimento em AF | C112: 1600 | D112: 1600 | E112: 1600
A113: Fornecedores em dias | B113: 69.1521631 | C113: 71.20501478 | D113: 70.71764358 | E113: 82.18023501 | F113: 71.50081806
A114: Adiantamento de clientes / vendas
A115: Outros credores / vendas
A116: Aumento de Dívida de longo prazo | C116: -150 | D116: -150 | E116: -150 | F116: -150
A117: Payout | B117: 0 | C117: 0 | D117: 0 | E117: 0 | F117: 0
A118: Dividendos pagos | B118: 0 | C118: 1200 | D118: 0 | E118: 0 | F118: 0
H121: DOAR
A122: Balanço resumido | B122: 2006 | C122: 2007 | D122: 2008 | E122: 2009 | F122: 2010 | H122: 2007-10
A123: Caixa excedente | B123: =B59/1000 -> 0.69 | C123: 0.63 | D123: 0.36 | E123: 0.18 | F123: 0.12 | H123: =F123-C123 -> -0.51
A124: CG ou circulante líquido | B124: 8.797211759 | C124: 10.5671263 | D124: 14.70805795 | E124: 22.93049008 | F124: 26.33111898 | H124: =F124-C124 -> 15.76399268
A125: AF ou ativo fixo líquido | B125: 15.3 | C125: 16.29 | D125: 16.53 | E125: 15.57 | F125: 15.06 | H125: =F125-C125 -> -1.23
A126: AN ou ativo líquido | B126: =B123+B124+B125 -> 24.78721176 | C126: =C123+C124+C125 -> 27.4871263 | D126: =D123+D124+D125 -> 31.59805795 | E126: =E123+E124+E125 -> 38.68049008 | F126: =F123+F124+F125 -> 41.51111898
A128: Dívida (a longo e curto prazo) | B128: =B64/1000 -> 6.18521384 | C128: 5.252926573 | D128: 8.822935101 | E128: 14.33131223 | F128: 15.28192418 | H128: =F128-C128 -> 10.02899761
A129: Patrimônio líquido (Equity) | B129: 18.60199792 | C129: 22.23419973 | D129: 22.77512285 | E129: 24.34917785 | F129: 26.2291948 | H129: =F129-C129 -> 3.994995072
A130: Dívida + Equity | B130: =B128+B129 -> 24.78721176 | C130: =C128+C129 -> 27.4871263 | D130: =D128+D129 -> 31.59805795 | E130: =E128+E129 -> 38.68049008 | F130: =F128+F129 -> 41.51111898
H133: DOAR
B134: 2006 | C134: 2007 | D134: 2008 | E134: 2009 | F134: 2010 | H134: 2007-10
A135: NOF | B135: =B124 -> 8.797211759 | C135: =C124 -> 10.5671263 | D135: =D124 -> 14.70805795 | E135: =E124 -> 22.93049008 | F135: =F124 -> 26.33111898 | H135: =F135-C135 -> 15.76399268
A136: CG | B136: =B70/1000 -> 5.251997919 | C136: =C70/1000 -> 7.744199727 | D136: =D70/1000 -> 7.895122853 | E136: =E70/1000 -> 10.27917785 | F136: =F70/1000 -> 12.5191948 | H136: =F136-C136 -> 4.774995072
A137: Crédito necessário (-) + | B137: =B136-B135 -> -3.54521384 | C137: =C136-C135 -> -2.822926573 | D137: =D136-D135 -> -6.812935101 | E137: =E136-E135 -> -12.65131223 | F137: =F136-F135 -> -13.81192418 | H137: =F137-C137 -> -10.98899761
A138: Caixa excedente (+)

Sheet Anex 1-2 FAZER (hidden)
E1: Anexo 1. Doniphon. DRE e previsão
A2: DRE | D2: Dados históricos | I2: Previsão
A3: (milhares de euros) | B3: 2018 | C3: 2019 | D3: =C3+1 -> 2020 | E3: =D3+1 -> 2021 | F3: =E3+1 -> 2022 | I3: =F3+1 -> 2023 | J3: =I3+1 -> 2024
A4: Vendas | B4: 32850 | C4: =B4*(1+C97) -> 39748.5 | D4: =C4*(1+D97) -> 39351.015 | E4: =D4*(1+E97) -> 45253.66725 | F4: =E4*(1+F97) -> 49779.03398
A5: Custo de materiais | B5: =B4*B98 -> 17804.7 | C5: =C4*C98 -> 21066.705 | D5: =D4*D98 -> 23728.66204 | E5: =E4*E98 -> 27785.75169 | F5: =F4*F98 -> 29867.42039 | I5: ------- | J5: -------
A6: Mão de obra | B6: =B4*B99 -> 5715.9 | C6: =C4*C99 -> 6359.76 | D6: =D4*D99 -> 8421.11721 | E6: =E4*E99 -> 9729.538459 | F6: =F4*F99 -> 10602.93424 | I6: ------- | J6: -------
A7: Total CMV | B7: =B5+B6 -> 23520.6 | C7: =C5+C6 -> 27426.465 | D7: =D5+D6 -> 32149.77925 | E7: =E5+E6 -> 37515.29015 | F7: =F5+F6 -> 40470.35462 | I7: ------- | J7: -------
A8: Margem bruta | B8: =B4-B7 -> 9329.4 | C8: =C4-C7 -> 12322.035 | D8: =D4-D7 -> 7201.235745 | E8: =E4-E7 -> 7738.3771 | F8: =F4-F7 -> 9308.679353 | I8: =I4*I21 -> 0 | J8: =J4*J21 -> 0
A9: Despesas gerais (Opex) | B9: 3660 | C9: 4020 | D9: 4230 | E9: 3960 | F9: 4050
A10: EBITDA | B10: =B8-B9 -> 5669.4 | C10: =C8-C9 -> 8302.035 | D10: =D8-D9 -> 2971.235745 | E10: =E8-E9 -> 3778.3771 | F10: =F8-F9 -> 5258.679353 | I10: =I8-I9 -> 0 | J10: =J8-J9 -> 0
A11: Amortização | B11: 1591.2 | C11: 1591.2 | D11: 1694.16 | E11: 1719.12 | F11: 1560 | I11: 1500 | J11: 1500
A12: EBIT ou LAJIR | B12: =B10-B11 -> 4078.2 | C12: =C10-C11 -> 6710.835 | D12: =D10-D11 -> 1277.075745 | E12: =E10-E11 -> 2059.2571 | F12: =F10-F11 -> 3698.679353 | I12: =I10-I11 -> -1500 | J12: =J10-J11 -> -1500
A13: Resultados extraordinários | B13: 0 | C13: 0 | D13: 0 | E13: 1100 | F13: 0 | I13: 0 | J13: 0
A14: Despesas financeiras | B14: =B103*(B48+B46) -> 321.6311197 | C14: =C103*(C48+C46) -> 91.8 | D14: =D103*(D48+D46) -> 103.95 | E14: =E103*(E48+E46) -> 111 | F14: =F103*(F48+F46) -> 105.3
A15: Lucro antes de impostos | B15: =B12+B13-B14 -> 3756.56888 | C15: =C12+C13-C14 -> 6619.035 | D15: =D12+D13-D14 -> 1173.125745 | E15: =E12+E13-E14 -> 3048.2571 | F15: =F12+F13-F14 -> 3593.379353 | I15: =I12+I13-I14 -> -1500 | J15: =J12+J13-J14 -> -1500
A16: Impostos (25%) | B16: =B15*B106 -> 939.1422201 | C16: =C15*C106 -> 1654.75875 | D16: =D15*D106 -> 293.2814363 | E16: =E15*E106 -> 762.0642749 | F16: =F15*F106 -> 898.3448383
A17: Lucro líquido, LL | B17: =B15-B16 -> 2817.42666 | C17: =C15-C16 -> 4964.27625 | D17: =D15-D16 -> 879.8443088 | E17: =E15-E16 -> 2286.192825 | F17: =F15-F16 -> 2695.034515 | I17: =I15-I16 -> -1500 | J17: =J15-J16 -> -1500
A19: Índices de demonstração de resultados | I19: Hipóteses do DRE
A20: Crescimento das vendas | B20: 0.41 | C20: =C97 -> 0.21 | I20: 0 | J20: 0
A21: Margem bruta / Vendas | B21: =B8/B4 -> 0.284 | I21: 0.2 | J21: 0.21
A22: Opex / Vendas | B22: =B9/B4 -> 0.1114155251
A23: Aumento de Opex | B23: na | I23: 0.05 | J23: 0.05
A24: EBITDA / Vendas | B24: =B10/B4 -> 0.1725844749
A25: ROS (Lucro líquido / Vendas) | B25: =B17/B4 -> 0.08576641279
A26: ROE (Lucro líquido / Patrimônio) | B26: =B17/B49 -> 0.1784924414
A27: RONA (EBIT / Ativo líquido) | B27: =B12/B62 -> 0.1645283883
A28: Custo da dívida | B28: =B103 -> 0.052 | I28: 0.07 | J28: 0.07
A29: EBIT / Despesas financeiras | B29: =B12/B14 -> 12.67974319
E31: Anexo 2. Doniphon. Balanços e Previsão
A33: Ativo | H33: Diferenças
A34: (milhares de euros) | B34: =B3 -> 2018 | C34: =C3 -> 2019 | D34: =D3 -> 2020 | E34: =E3 -> 2021 | F34: =F3 -> 2022 | H34: 2019-22
A35: Caixa | B35: 690 | C35: 630 | D35: 360 | E35: 180 | F35: 120
A36: Clientes | B36: =B4/365*B110 -> 8640 | C36: 10756.63111 | D36: 12047.42684 | E36: 18594.25222 | F36: 20786.25756
A37: Estoque | B37: 7350 | C37: 8946.135 | D37: 10726.65544 | E37: 13321.93574 | F37: 13256.22494
A38: Ativo circulante, AC | B38: =SUM(B35:B37) -> 16680 | C38: =SUM(C35:C37) -> 20332.76611 | D38: =SUM(D35:D37) -> 23134.08229 | E38: =SUM(E35:E37) -> 32096.18796 | F38: =SUM(F35:F37) -> 34162.4825
A39: Ativo fixo líquido, AF | B39: 15300 | C39: 16290 | D39: 16530 | E39: 15570 | F39: 15060
A40: Ativo total | B40: =B38+B39 -> 31980 | C40: =C38+C39 -> 36622.76611 | D40: =D38+D39 -> 39664.08229 | E40: =E38+E39 -> 47666.18796 | F40: =F38+F39 -> 49222.4825
A42: Passivo
A43: Fornecedores | B43: =B54/365*B113 -> 3810 | C43: =C54/365*C113 -> 4421.117417 | D43: =D54/365*D113 -> 0 | E43: =E54/365*E113 -> 0 | F43: =F54/365*F113 -> 0
A44: Adiantamentos de clientes | B44: 2370 | C44: 3199.5 | D44: 2143.665 | E44: 1436.25555 | F44: 962.2912185
A45: Impostos diferidos e outros credores | B45: 1012.788241 | C45: 1515.022394 | D45: 980.0325537 | E45: 709.1126118 | F45: 911.1363741
A46: Crédito bancário | B46: =IF(B71<0,(-B71+B35),0) -> 4235.21384 | C46: =IF(C71<0,(-C71+C35),0) -> 0 | D46: =IF(D71<0,(-D71+D35),0) -> 0 | E46: =IF(E71<0,(-E71+E35),0) -> 0 | F46: =IF(F71<0,(-F71+F35),0) -> 0
A47: Passivo circulante | B47: =B43+B44+B45+B46 -> 11428.00208 | C47: =C43+C44+C45+C46 -> 9135.639811 | D47: =D43+D44+D45+D46 -> 3123.697554 | E47: =E43+E44+E45+E46 -> 2145.368162 | F47: =F43+F44+F45+F46 -> 1873.427593
A48: Empréstimo bancário | B48: 1950 | C48: =B48+C116 -> 1800 | D48: =C48+D116 -> 1650 | E48: =D48+E116 -> 1500 | F48: =E48+F116 -> 1350
A49: Capital e reservas | B49: 15784.57126 | C49: =B49+B50-C118 -> 17401.99792 | D49: =C49+C50 -> 22366.27417 | E49: =D49+D50 -> 23246.11848 | F49: =E49+E50 -> 25532.3113
A50: Lucro do ano | B50: =B17 -> 2817.42666 | C50: =C17 -> 4964.27625 | D50: =D17 -> 879.8443088 | E50: =E17 -> 2286.192825 | F50: =F17 -> 2695.034515
A51: Patrimônio líquido | B51: =B49+B50 -> 18601.99792 | C51: =C49+C50 -> 22366.27417 | D51: =D49+D50 -> 23246.11848 | E51: =E49+E50 -> 25532.3113 | F51: =F49+F50 -> 28227.34582
A52: Total passivo e Patrimônio | B52: =B47+B48+B51 -> 31980 | C52: =C47+C48+C51 -> 33301.91398 | D52: =D47+D48+D51 -> 28019.81603 | E52: =E47+E48+E51 -> 29177.67946 | F52: =F47+F48+F51 -> 31450.77341
A54: Pro memória: Compras | B54: 20110 | C54: =C5+(C37-B37) -> 22662.84
A55: Pro memória: Dividendos | C55: =B49+B50-C49 -> 1200
A56: Capex
H57: =H33 -> Diferenças | I57: Previsão
A58: Balanço curto | B58: =B3 -> 2018 | C58: =C3 -> 2019 | D58: =D3 -> 2020 | E58: =E3 -> 2021 | F58: =F3 -> 2022 | H58: =H34 -> 2019-22 | I58: =F58+1 -> 2023 | J58: =I58+1 -> 2024
A59: Excedente de caixa | B59: =B35-B109 -> 690 | C59: =C35-C109 -> 630 | D59: =D35-D109 -> 360 | E59: =E35-E109 -> 180 | F59: =F35-F109 -> 120 | H59: =F59-C59 -> -510 | I59: 0 | J59: 0
A60: NOF ou circulante líquido | B60: =B109+B36+B37-B43-B44-B45 -> 8797.211759
A61: AF ou ativo fixo líquido | B61: =B39 -> 15300 | C61: =C39 -> 16290 | D61: =D39 -> 16530 | E61: =E39 -> 15570 | F61: =F39 -> 15060 | H61: =F61-C61 -> -1230 | I61: =F61 -> 15060 | J61: =I61 -> 15060
A62: AN ou ativo líquido | B62: =B59+B60+B61 -> 24787.21176 | C62: =C59+C60+C61 -> 16920 | D62: =D59+D60+D61 -> 16890 | E62: =E59+E60+E61 -> 15750 | F62: =F59+F60+F61 -> 15180 | I62: =I59+I60+I61 -> 15060 | J62: =J59+J60+J61 -> 15060
A64: Dívida (curto e longo prazo) | B64: =B46+B48 -> 6185.21384
A65: Patrimônio líquido (Equity) | B65: =B51 -> 18601.99792
A66: Dívida + Equity | B66: =B64+B65 -> 24787.21176
A68: Extrato do balanço, NOF vs CG
A69: NOF | B69: =B60 -> 8797.211759
A70: CG | B70: =B48+B51-B39 -> 5251.997919
A71: Crédito necessário (-) ou | B71: =B70-B69 -> -3545.21384
A72: Excedente de caixa (+)
A74: Índices de balanço | H74: % Vendas | I74: Hipóteses do Balanço
A75: Dias de cobrança | B75: =B36/B4*365 -> 96 | I75: ----- | J75: ----- | L75: 120 | M75: =L75/365 -> 0.3287671233
A76: Dias de estoque | B76: =B37/B5*365 -> 150.6765068 | I76: ----- | J76: -----
A77: Dias de pagamento | B77: =B43/B54*365 -> 69.1521631 | I77: ----- | J77: -----
A78: NOF / Vendas em % | B78: =B69/B4 -> 0.2677994447 | I78: 0.42 | J78: 0.4
A79: Dívida / EBITDA | B79: =B64/B10 -> 1.090982086
A80: Dívida / Lucro líquido | B80: =B64/B17 -> 2.19534156
J81: © E.M. Abascal 2023
A84: Clientes / Vendas | B84: =B36/B$4 -> 0.2630136986 | C84: 0.270617284 | D84: 0.3061528869 | E84: 0.4108894008 | F84: 0.4175705293
A85: Estoques / Vendas | B85: 0.2237442922 | C85: 0.2250684932 | D85: 0.2725890411 | E85: 0.2943835616 | F85: 0.2663013699
A86: Fornecedores / vendas | B86: =B43/B4 -> 0.1159817352 | C86: =C43/C4 -> 0.1112272769 | D86: =D43/D4 -> 0 | E86: =E43/E4 -> 0 | F86: =F43/F4 -> 0
A87: Adiantamento Clientes / vendas | B87: =B44/B$4 -> 0.07214611872 | C87: 0.08049360353 | D87: 0.05447546906 | E87: 0.03173788197 | F87: 0.01933125538
A88: Impostos diferidos e outros /vendas | B88: 0.03083069227 | C88: 0.03811520922 | D88: 0.02490488628 | E88: 0.01566972701 | F88: 0.01830361703
A89: Passivo espontâneo / vendas | B89: =B87+B88 -> 0.102976811 | C89: =C87+C88 -> 0.1186088128 | D89: =D87+D88 -> 0.07938035534 | E89: =E87+E88 -> 0.04740760898 | F89: =F87+F88 -> 0.03763487242
A90: NOF / Vendas | B90: =B84+B85-B86-B89 -> 0.2677994447 | C90: =C84+C85-C86-C89 -> 0.2658496874 | D90: =D84+D85-D86-D89 -> 0.4993615726 | E90: =E84+E85-E86-E89 -> 0.6578653535 | F90: =F84+F85-F86-F89 -> 0.6462370267
A94: HIPÓTESES EM NEGRITO
A95: BALANÇO CALCULADO COM BASE NO ANO QUE TERMINA, NÃO NO PRÓXIMO
A96: HIPÓTESES DRE
A97: Crescimento das vendas | C97: 0.21 | D97: -0.01 | E97: 0.15 | F97: 0.1
A98: Material em % | B98: 0.542 | C98: 0.53 | D98: 0.603 | E98: 0.614 | F98: 0.6
A99: Mão de obra em % | B99: 0.174 | C99: 0.16 | D99: 0.214 | E99: 0.215 | F99: 0.213
A100: CMV em %
A102: Crescimento de Despesas Gerais | C102: 0.09836065574 | D102: 0.05223880597 | E102: -0.06382978723 | F102: 0.02272727273
A103: Juros | B103: 0.052 | C103: 0.051 | D103: 0.063 | E103: 0.074 | F103: 0.078
A104: Depreciação % do AF | B104: 0.1 | C104: =B104 -> 0.1 | D104: =C104 -> 0.1 | E104: =D104 -> 0.1 | F104: =E104 -> 0.1
A105: Depreciação, fixo em $
A106: Impostos | B106: 0.25 | C106: =B106 -> 0.25 | D106: =C106 -> 0.25 | E106: =D106 -> 0.25 | F106: =E106 -> 0.25
A108: HIPÓTESES DE BALANÇO
A109: Caixa mínima | B109: 0 | C109: 0 | D109: 0
A110: Clientes em dias | B110: 96 | C110: 98.77530864 | D110: 111.7458037 | E110: 149.9746313 | F110: 152.4132432
A111: Estoque em dias | B111: 150.6765068 | C111: 155 | D111: 165 | E111: 175 | F111: 162
A112: Novo investimento em AF | C112: 1600 | D112: 1600 | E112: 1600
A113: Fornecedores em dias | B113: 69.1521631 | C113: 71.20501478 | D113: 70.71764358 | E113: 82.18023501 | F113: 71.50081806
A114: Adiantamento de clientes / vendas
A115: Outros credores / vendas
A116: Aumento de Dívida de longo prazo | C116: -150 | D116: -150 | E116: -150 | F116: -150
A117: Payout | B117: 0 | C117: 0 | D117: 0 | E117: 0 | F117: 0
A118: Dividendos pagos | B118: 0 | C118: 1200 | D118: 0 | E118: 0 | F118: 0
H121: COAF
A122: Balanço resumido | B122: 2006 | C122: 2007 | D122: 2008 | E122: 2009 | F122: 2010 | H122: 2007-10
A123: Caixa excedente | B123: =B59/1000 -> 0.69 | C123: 0.63 | D123: 0.36 | E123: 0.18 | F123: 0.12 | H123: =F123-C123 -> -0.51
A124: CG ou circulante líquido | B124: 8.797211759 | C124: 0 | D124: 0 | E124: 0 | F124: 0 | H124: =F124-C124 -> 0
A125: AF ou ativo fixo líquido | B125: 15.3 | C125: 16.29 | D125: 16.53 | E125: 15.57 | F125: 15.06 | H125: =F125-C125 -> -1.23
A126: AN ou ativo líquido | B126: =B123+B124+B125 -> 24.78721176 | C126: =C123+C124+C125 -> 16.92 | D126: =D123+D124+D125 -> 16.89 | E126: =E123+E124+E125 -> 15.75 | F126: =F123+F124+F125 -> 15.18
A128: Dívida (a longo e curto prazo) | B128: =B64/1000 -> 6.18521384 | C128: 0 | D128: 0 | E128: 0 | F128: 0 | H128: =F128-C128 -> 0
A129: Patrimônio líquido (Equity) | B129: 18.60199792 | C129: 0 | D129: 0 | E129: 0 | F129: 0 | H129: =F129-C129 -> 0
A130: Dívida + Equity | B130: =B128+B129 -> 24.78721176 | C130: =C128+C129 -> 0 | D130: =D128+D129 -> 0 | E130: =E128+E129 -> 0 | F130: =F128+F129 -> 0
H133: COAF
B134: 2006 | C134: 2007 | D134: 2008 | E134: 2009 | F134: 2010 | H134: 2007-10
A135: NOF | B135: =B124 -> 8.797211759 | C135: =C124 -> 0 | D135: =D124 -> 0 | E135: =E124 -> 0 | F135: =F124 -> 0 | H135: =F135-C135 -> 0
A136: CG | B136: =B70/1000 -> 5.251997919 | C136: =C70/1000 -> 0 | D136: =D70/1000 -> 0 | E136: =E70/1000 -> 0 | F136: =F70/1000 -> 0 | H136: =F136-C136 -> 0
A137: Crédito necessário (-) + | B137: =B136-B135 -> -3.54521384 | C137: =C136-C135 -> 0 | D137: =D136-D135 -> 0 | E137: =E136-E135 -> 0 | F137: =F136-F135 -> 0 | H137: =F137-C137 -> 0
A138: Caixa excedente (+)
